{"text_format":"2","workbook":"xlsx","n_sheets":13,"sheets":["(KNY)könyvvizsgálói nyilatkozat","(54-56) személyi+járulék","(51) anyagköltség ","(52) igénybe vett szolg","(53) egyéb szolgáltatások","(11) immat jav beszerz","(13) műszaki berendezések","(14) egyéb berendezések","(16) beruházás,felújítás","tám. típus összesítő","(LNY) lemondó nyilatkozat","támogatás típusai","Támogatás típusa"],"not_rendered":{"charts":0,"images":0,"macros":0,"external_links":0,"defined_names":19,"comments":0,"pivot_tables":0},"unopened":[],"bounds":{"document_bytes":16777216,"sheet_cells":100000,"run_cost":"one","rows_first":2000,"rows_last":500,"rows_between":2000,"halvings":0,"cell_chars":16384,"cell_head_chars":4096},"cells_cut":0,"cells_raw":0,"read":"whole","date_system":"1900"}

{"sheet":"(KNY)könyvvizsgálói nyilatkozat","index":0,"n_rows":46,"n_cols":5,"rows_kept":46,"cut":false,"hidden":false,"merged":[[38,0,38,4],[44,0,44,4],[45,0,45,4],[3,1,3,2],[4,1,4,2],[5,1,5,2],[13,0,13,4],[32,2,32,4],[35,0,35,4]]}
["Egy példányban kitöltve, eredeti aláírással és bélyegzéssel ellátva kell benyújtani.",null,null,null,"Formanyomtatvány pénzügyi elszámoláshoz"]
["A táblázat adatai a többi munkalapról automatikusan bemásolódnak!"]
[]
["Kedvezményezett neve:","XY Kft."]
["Szerződésszám:","2018-1.1.1-VKE-2018-00001"]
["Az elszámolással érintett időszak kezdete és vége:","2018-12-31"]
[]
[]
[]
[null,null,"N Y I L A T K O Z A T"]
[null,null,"(a kedvezményezett tölti ki)"]
[]
[]
["Alulírott <név>, mint a <kedvezményezett megnevezése> társaság/szervezet cégjegyzésre jogosult vezetője teljes jogi felelősséggel nyilatkozom, hogy a fenti támogatási szerződés alapján a szakmai és pénzügyi beszámolóra vonatkozó előírások szerint a támogatás és a saját/egyéb forrás felhasználásáról, valamint a kamatok tekintetében teljes körű, elkülönített nyilvántartást vezetek. \nAz elszámolni kívánt költségek az adott projektre vonatkozó tárgyi és időbeli elszámolhatósági szabályokkal összhangban, számlákkal vagy egyéb a költséget igazoló számviteli bizonylatokkal alátámasztva, teljesítésigazolás mellett kerültek felhasználásra és azokra további EU-s vagy egyéb hazai támogatás nem került elszámolásra.\nA szerződés melléklete alapján, a számlaösszesítőkben feltüntetett részfeladatok teljesítése során keletkezett ráfordítások összege < összeg számmal Ft-ban> Ft azaz <összeg betűvel Ft-ban>, az alábbi forrásonként és jogcímenként kerülnek elszámolásra. A kimutatott ráfordítások a szerződésben vállalt célok megvalósítása érdekében merültek fel."]
[]
[]
["Költségtípusok","Támogatás (Ft)","Saját forrás (Ft)","Egyéb forrás (Ft)","Összesen (Ft)"]
["54. Személyi juttatások ",{"$f":"+'(54-56) személyi+járulék'!N26","v":7100},{"$f":"+'(54-56) személyi+járulék'!O26","v":0},{"$f":"+'(54-56) személyi+járulék'!P26","v":0},{"$f":"SUM(B18:D18)","v":7100}]
["56. Munkaadókat terhelő járulékok ",{"$f":"+'(54-56) személyi+járulék'!Q26","v":2200},{"$f":"+'(54-56) személyi+járulék'!R26","v":0},{"$f":"+'(54-56) személyi+járulék'!S26","v":0},2200]
["51. Anyagköltség",{"$f":"+'(51) anyagköltség '!L28","v":500},{"$f":"+'(51) anyagköltség '!M28","v":500},{"$f":"+'(51) anyagköltség '!N28","v":0},1000]
["52. Igénybe vett szolgáltatások",{"$f":"+'(52) igénybe vett szolg'!L28","v":500},{"$f":"+'(52) igénybe vett szolg'!M28","v":500},{"$f":"+'(52) igénybe vett szolg'!N28","v":0},1000]
["53. Egyéb szolgáltatások",{"$f":"+'(53) egyéb szolgáltatások'!L25","v":500},{"$f":"+'(53) egyéb szolgáltatások'!M25","v":500},{"$f":"+'(53) egyéb szolgáltatások'!N25","v":0},1000]
["11. Immateriális javak",{"$f":"+'(11) immat jav beszerz'!O27","v":500},{"$f":"+'(11) immat jav beszerz'!P27","v":500},{"$f":"+'(11) immat jav beszerz'!Q27","v":0},1000]
["13. Műszaki gépek berendezések, járművek",{"$f":"+'(13) műszaki berendezések'!O27","v":500},{"$f":"+'(13) műszaki berendezések'!P27","v":500},{"$f":"+'(13) műszaki berendezések'!Q27","v":0},1000]
["14. Egyéb berendezések, felszerelések, járművek",{"$f":"+'(14) egyéb berendezések'!O27","v":500},{"$f":"+'(14) egyéb berendezések'!P27","v":500},{"$f":"+'(14) egyéb berendezések'!Q27","v":0},1000]
["16. Beruházások, felújítások",{"$f":"+'(16) beruházás,felújítás'!O27","v":500},{"$f":"+'(16) beruházás,felújítás'!P27","v":500},{"$f":"+'(16) beruházás,felújítás'!Q27","v":0},1000]
["Összesen:",{"$f":"SUM(B18:B26)","v":12800},{"$f":"SUM(C18:C26)","v":3500},0,{"$f":"SUM(E18:E26)","v":16300}]
[]
["……………………….,  …………év …………….hó …….nap."]
[]
[]
[null,null,null,"…………………………"]
[null,null,"            Kedvezményezett képviseletére jogosult vezető aláírása*"]
[null,null,null,"PH."]
[]
["Alulírott <név>, mint a <kedvezményezett megnevezése> társaság/szervezet (megbízott) könyvvizsgálója, és <név>, mint a <kedvezményezett megnevezése> társaság/szervezet gazdasági vezetője igazolom, hogy a fenti adatok a <kedvezményezett megnevezése> társaság/szervezet elkülönített számviteli nyilvántartásával megegyeznek."]
[]
["………………………., ……….év ………………hó ……nap."]
[]
[]
[null,"…………………………",null,null,"…………………………"]
[null,"gazdasági vezető aláírása*",null,null,"könyvvizsgáló aláírása*"]
[{"$nulls":4},"Könyvvizsgálói Kamaránál nyilvántartott bejegyzési szám: ……………………."]
[]
[]
["* Az aláírók nevét nyomtatott betűkkel is kérjük kitölteni."]

{"sheet":"(54-56) személyi+járulék","index":1,"n_rows":28,"n_cols":21,"rows_kept":28,"cut":false,"hidden":false,"merged":[[4,0,4,20],[6,5,7,5],[6,16,6,18],[6,7,6,9],[6,10,6,12],[6,13,6,15],[0,0,0,5],[1,0,1,5],[2,0,2,5],[0,6,0,10],[1,6,1,10],[2,6,2,10],[27,0,29,20],[24,0,24,20],[25,0,25,6],[6,0,6,1],[6,6,7,6],[6,19,7,19],[6,2,6,3],[6,20,7,20],[6,4,7,4]]}
["Kedvezményezett neve:",{"$nulls":5},{"$f":"+'(KNY)könyvvizsgálói nyilatkozat'!$B4","v":"XY Kft."}]
["Szerződésszám:",{"$nulls":5},{"$f":"+'(KNY)könyvvizsgálói nyilatkozat'!$B5","v":"2018-1.1.1-VKE-2018-00001"}]
["Mérföldkő dátuma::",{"$nulls":5},{"$f":"+'(KNY)könyvvizsgálói nyilatkozat'!$B6","v":"2018-12-31"}]
[]
["54 -56 SZEMÉLYI JUTTATÁSOK ÉS JÁRULÉKAI"]
[]
["Projektben résztvevő dolgozók",null,"Az elszámolt időszak",null,"Az adott hónapban a projektre elszámolt munka-órák száma*","Pénzügyi teljesítés időpontja","Állandó dolgozó (Á), vagy megbí-zásos dolgozó (M)  (legördülő menű)","Projektre elszámolt bruttó bér (Ft)",null,null,"Projektre elszámolt egyéb juttatások (Ft) (pld. napidíj, stb.)",null,null,"Projektre elszámolt bruttó bér és juttatások összesen (Ft)",null,null,"Projektre elszámolt bruttó bér járuléka (Ft)",null,null,"Támogatás típusa","Tám. int."]
["neve","státusza (legördülő menű)\n","kezdete (dátum)","vége (dátum)",null,null,null,"Támogatás","Saját forrás","Egyéb forrás","Támogatás","Saját forrás","Egyéb forrás","Támogatás","Saját forrás","Egyéb forrás","Támogatás","Saját forrás","Egyéb forrás"]
["Panni","K+F munkatárs","2016-01-01","2016-01-31",168,"2016-02-05","M",5000,null,null,1000,null,null,{"$f":"H9+K9","v":6000},{"$f":"I9+L9","v":0},{"$f":"J9+M9","v":0},2000,null,null,"K+F/Alap.",1]
["Panni","Techn., segédszem.","2016-01-01","2016-01-25",26,"2016-02-05","Á",1000,null,null,100,null,null,{"$f":"H10+K10","v":1100},{"$f":"I10+L10","v":0},{"$f":"J10+M10","v":0},200,null,null,null,1]
[null,"Pr.menedzser",{"$nulls":11},0,0,0]
[null,"Egyéb ",{"$nulls":11},0,0,0]
[{"$nulls":13},0,0,0]
[{"$nulls":13},0,0,0]
[{"$nulls":13},0,0,0]
[{"$nulls":13},0,0,0]
[{"$nulls":13},0,0,0]
[{"$nulls":13},0,0,0]
[{"$nulls":13},0,0,0]
[{"$nulls":13},0,0,0]
[{"$nulls":13},0,0,0]
[{"$nulls":13},0,0,0]
[{"$nulls":13},0,0,0]
[{"$nulls":13},0,0,0]
[]
["Összesen:",{"$nulls":6},{"$f":"SUM(H9:H24)","v":6000},{"$f":"SUM(I9:I24)","v":0},0,1100,0,0,7100,0,0,2200,0,0]
[]
["* Amennyiben a pályázati felhívás/útmutató megengedi a szabadság, betegszabadság, ünnepnap elszámolását a projekt terhére, úgy szíveskedjenek a feltüntetett munkaórákba beleszámítani ezek idejét is!"]

{"sheet":"(51) anyagköltség ","index":2,"n_rows":28,"n_cols":17,"rows_kept":28,"cut":false,"hidden":false,"merged":[[26,0,26,16],[27,0,27,7],[27,15,27,16],[4,0,4,16],[6,0,7,0],[6,1,7,1],[6,2,7,2],[6,3,7,3],[6,4,7,4],[6,5,7,5],[6,6,7,6],[6,7,7,7],[6,8,6,10],[6,11,6,14],[6,15,7,15],[6,16,7,16],[0,0,0,3],[0,4,0,8],[1,0,1,3],[1,4,1,8],[2,0,2,3],[2,4,2,8]]}
["Kedvezményezett neve:",null,null,null,{"$f":"+'(KNY)könyvvizsgálói nyilatkozat'!$B4","v":"XY Kft."}]
["Szerződésszám:",null,null,null,{"$f":"+'(KNY)könyvvizsgálói nyilatkozat'!$B5","v":"2018-1.1.1-VKE-2018-00001"}]
["Az elszámolással érintett időszak kezdete és vége:",null,null,null,{"$f":"+'(KNY)könyvvizsgálói nyilatkozat'!$B6","v":"2018-12-31"}]
[]
["51 Anyagköltség"]
[]
["Sor-szám","Számviteli bizonylat kiállítójának neve","Adószáma","Számviteli bizonylat sorszáma","Kiállítás kelte","Teljesítés dátuma","Pénzügyi teljesítés időpontja","Gazdasági esemény rövid leírása","Összege (Ft)",null,null,"Projekt terhére elszámolt költségek (Ft)",null,null,null,"Támogatás típusa","Tám. int."]
["szám",{"$nulls":7},"Bruttó","Nettó","ÁFA","Támogatás","Saját forrás","Egyéb f.","Összesen"]
["1.",{"$nulls":7},1270,1000,{"$f":"+I9-J9","v":270},500,500,null,{"$f":"SUM(L9:N9)","v":1000},"D.M./Eszköz",0.5]
["2.",{"$nulls":13},{"$f":"SUM(L10:N10)","v":0}]
[{"$nulls":14},0]
[{"$nulls":14},0]
[{"$nulls":14},0]
[{"$nulls":14},0]
[{"$nulls":14},0]
[{"$nulls":14},0]
[{"$nulls":14},0]
[{"$nulls":14},0]
[{"$nulls":14},0]
[{"$nulls":14},0]
[{"$nulls":14},0]
[{"$nulls":14},0]
[{"$nulls":14},0]
[{"$nulls":14},0]
[{"$nulls":14},0]
[{"$nulls":14},0]
[]
[" Összesen",{"$nulls":7},{"$f":"SUM(I9:I26)","v":1270},1000,270,500,500,0,1000]

{"sheet":"(52) igénybe vett szolg","index":3,"n_rows":28,"n_cols":17,"rows_kept":28,"cut":false,"hidden":false,"merged":[[6,8,6,10],[27,15,27,16],[6,15,7,15],[6,7,7,7],[6,6,7,6],[26,0,26,16],[6,16,7,16],[6,11,6,14],[6,2,7,2],[6,3,7,3],[27,0,27,7],[6,4,7,4],[6,5,7,5],[6,1,7,1],[6,0,7,0],[4,0,4,16],[0,4,0,8],[1,4,1,8],[2,0,2,3],[2,4,2,8],[1,0,1,3],[0,0,0,3]]}
["Kedvezményezett neve:",null,null,null,{"$f":"+'(KNY)könyvvizsgálói nyilatkozat'!$B4","v":"XY Kft."}]
["Szerződésszám:",null,null,null,{"$f":"+'(KNY)könyvvizsgálói nyilatkozat'!$B5","v":"2018-1.1.1-VKE-2018-00001"}]
["Az elszámolással érintett időszak kezdete és vége:",null,null,null,{"$f":"+'(KNY)könyvvizsgálói nyilatkozat'!$B6","v":"2018-12-31"}]
[]
[" 52 Igénybe vett szolgáltatások"]
[]
["Sor-szám","Számviteli bizonylat kiállítójának neve","Adószáma","Számviteli bizonylat sorszáma","Kiállítás kelte","Teljesítés dátuma","Pénzügyi teljesítés időpontja","Gazdasági esemény rövid leírása","Összege (Ft)",null,null,"Projekt terhére elszámolt költségek (Ft)",null,null,null,"Támogatás típusa","Tám. int."]
["szám",{"$nulls":7},"Bruttó","Nettó","ÁFA","Támogatás","Saját forrás","Egyéb f.","Összesen"]
["1.",{"$nulls":7},1270,1000,{"$f":"+I9-J9","v":270},500,500,null,{"$f":"SUM(L9:N9)","v":1000},"K+F/Alap.",0.5]
["2.",{"$nulls":13},{"$f":"SUM(L10:N10)","v":0}]
[{"$nulls":14},0]
[{"$nulls":14},0]
[{"$nulls":14},0]
[{"$nulls":14},0]
[{"$nulls":14},0]
[{"$nulls":14},0]
[{"$nulls":14},0]
[{"$nulls":14},0]
[{"$nulls":14},0]
[{"$nulls":14},0]
[{"$nulls":14},0]
[{"$nulls":14},0]
[{"$nulls":14},0]
[{"$nulls":14},0]
[{"$nulls":14},0]
[{"$nulls":14},0]
[]
[" Összesen",{"$nulls":7},{"$f":"SUM(I9:I26)","v":1270},1000,270,500,500,0,1000]

{"sheet":"(53) egyéb szolgáltatások","index":4,"n_rows":25,"n_cols":17,"rows_kept":25,"cut":false,"hidden":false,"merged":[[2,0,2,2],[0,3,0,7],[6,5,7,5],[6,3,7,3],[6,6,7,6],[1,3,1,7],[4,0,4,16],[0,0,0,2],[1,0,1,2],[6,0,7,0],[6,1,7,1],[6,2,7,2],[6,11,6,14],[2,3,2,7],[24,0,24,6],[6,7,7,7],[6,15,7,15],[6,16,7,16],[24,15,24,16],[6,4,7,4],[23,0,23,16],[6,8,6,10]]}
["Kedvezményezett neve:",null,null,{"$f":"+'(KNY)könyvvizsgálói nyilatkozat'!$B4","v":"XY Kft."}]
["Szerződésszám:",null,null,{"$f":"+'(KNY)könyvvizsgálói nyilatkozat'!$B5","v":"2018-1.1.1-VKE-2018-00001"}]
["Az elszámolással érintett időszak kezdete és vége:",null,null,{"$f":"+'(KNY)könyvvizsgálói nyilatkozat'!$B6","v":"2018-12-31"}]
[]
["53 EGYÉB SZOLGÁLTATÁSOK"]
[]
["Sor-szám","Számviteli bizonylat kiállítójának neve","Adószáma","Számviteli bizonylat sorszáma","Kiállítás kelte","Teljesítés dátuma","Pénzügyi teljesítés időpontja","Gazdasági esemény rövid leírása","Összege (Ft)",null,null,"Projekt terhére elszámolt költségek (Ft)",null,null,null,"Támogatás típusa","Tám. int."]
["szám",{"$nulls":7},"Bruttó","Nettó","ÁFA","Támogatás","Saját forrás","Egyéb f.","Összesen"]
["1.",{"$nulls":7},1270,1000,{"$f":"+I9-J9","v":270},500,500,0,{"$f":"SUM(L9:N9)","v":1000},"K+F/Alap.",0.5]
["2.",{"$nulls":13},{"$f":"SUM(L10:N10)","v":0}]
[{"$nulls":14},0]
[{"$nulls":14},0]
[{"$nulls":14},0]
[{"$nulls":14},0]
[{"$nulls":14},0]
[{"$nulls":14},0]
[{"$nulls":14},0]
[{"$nulls":14},0]
[{"$nulls":14},0]
[{"$nulls":14},0]
[{"$nulls":14},0]
[{"$nulls":14},0]
[{"$nulls":14},0]
[]
[" Összesen",{"$nulls":6},{"$f":"SUM(H9:H23)","v":0},1270,1000,270,500,500,0,1000]

{"sheet":"(11) immat jav beszerz","index":5,"n_rows":32,"n_cols":20,"rows_kept":32,"cut":false,"hidden":false,"merged":[[0,0,0,2],[1,0,1,2],[7,0,8,0],[0,3,0,7],[7,1,8,1],[7,2,8,2],[2,0,2,2],[5,0,5,19],[7,3,8,3],[7,4,8,4],[7,5,8,5],[7,6,8,6],[1,3,1,7],[2,3,2,7],[26,0,26,10],[7,19,8,19],[25,0,25,19],[7,9,8,9],[7,18,8,18],[7,7,7,8],[7,10,8,10],[7,11,7,13],[7,14,7,17]]}
["Kedvezményezett neve:",null,null,{"$f":"+'(KNY)könyvvizsgálói nyilatkozat'!$B4","v":"XY Kft."}]
["Szerződésszám:",null,null,{"$f":"+'(KNY)könyvvizsgálói nyilatkozat'!$B5","v":"2018-1.1.1-VKE-2018-00001"}]
["Az elszámolással érintett időszak kezdete és vége:",null,null,{"$f":"+'(KNY)könyvvizsgálói nyilatkozat'!$B6","v":"2018-12-31"}]
[]
[]
[" 11 IMMATERIÁLIS JAVAK BESZERZÉSE"]
[]
["Sor-szám","Számviteli bizonylat kiállítójának neve","Adószáma","Számviteli bizonylat sorszáma","Kiállítás kelte","Teljesítés dátuma","Pénzügyi teljesítés időpontja","Amortizációnál az elszámolt időszak",null,"amortizá-ciós kulcs %","Gazdasági esemény rövid leírása","Összege (Ft)",null,null,"Projekt terhére elszámolt költségek (Ft)",null,null,null,"Támogatás típusa","Tám. int."]
["szám",{"$nulls":6},"kezdete (dátum)","vége (dátum)",null,null,"Bruttó","Nettó","ÁFA","Támogatás","Saját forrás","Egyéb f.","Összesen"]
["1.",{"$nulls":10},1270,1000,{"$f":"+L10-M10","v":270},500,500,null,{"$f":"SUM(O10:Q10)","v":1000},"D.M./Immat.",0.5]
["2.",{"$nulls":16},{"$f":"SUM(O11:Q11)","v":0}]
[{"$nulls":17},0]
[{"$nulls":17},0]
[{"$nulls":17},0]
[{"$nulls":17},0]
[{"$nulls":17},0]
[{"$nulls":17},0]
[{"$nulls":17},0]
[{"$nulls":17},0]
[{"$nulls":17},0]
[{"$nulls":17},0]
[{"$nulls":17},0]
[{"$nulls":17},0]
[{"$nulls":17},0]
[{"$nulls":17},0]
[]
["Összesen",{"$nulls":10},{"$f":"SUM(L10:L26)","v":1270},{"$f":"SUM(M10:M26)","v":1000},270,{"$f":"SUM(O10:O26)","v":500},{"$f":"SUM(P10:P26)","v":500},0,1000]
[]
[]
[]
[]
["* Az aláírók nevét nyomtatott betűkkel is kérjük kitölteni."]

{"sheet":"(13) műszaki berendezések","index":6,"n_rows":27,"n_cols":20,"rows_kept":27,"cut":false,"hidden":false,"merged":[[0,0,0,2],[1,0,1,2],[2,0,2,2],[0,3,0,7],[1,3,1,7],[2,3,2,7],[5,0,5,19],[7,0,8,0],[7,1,8,1],[7,2,8,2],[7,3,8,3],[7,4,8,4],[7,5,8,5],[7,6,8,6],[7,7,7,8],[7,9,8,9],[7,19,8,19],[26,0,26,10],[7,10,8,10],[7,11,7,13],[7,14,7,17],[7,18,8,18],[25,0,25,19]]}
["Kedvezményezett neve:",null,null,{"$f":"+'(KNY)könyvvizsgálói nyilatkozat'!$B4","v":"XY Kft."}]
["Szerződésszám:",null,null,{"$f":"+'(KNY)könyvvizsgálói nyilatkozat'!$B5","v":"2018-1.1.1-VKE-2018-00001"}]
["Az elszámolással érintett időszak kezdete és vége:",null,null,{"$f":"+'(KNY)könyvvizsgálói nyilatkozat'!$B6","v":"2018-12-31"}]
[]
[]
["13 Műszaki berendezések, gépek, járművek"]
[]
["Sor-szám","Számviteli bizonylat kiállítójának neve","Adószáma","Számviteli bizonylat sorszáma","Kiállítás kelte","Teljesítés dátuma","Pénzügyi teljesítés időpontja","Amortizációnál az elszámolt időszak",null,"amortizá-ciós kulcs %","Gazdasági esemény rövid leírása","Összege (Ft)",null,null,"Projekt terhére elszámolt költségek (Ft)",null,null,null,"Támogatás típusa","Tám. int."]
["szám",{"$nulls":6},"kezdete (dátum)","vége (dátum)",null,null,"Bruttó","Nettó","ÁFA","Támogatás","Saját forrás","Egyéb f.","Összesen"]
["1.",{"$nulls":10},1270,1000,{"$f":"+L10-M10","v":270},500,500,0,{"$f":"SUM(O10:Q10)","v":1000},"K+F/Alap.",0.5]
["2.",{"$nulls":16},{"$f":"SUM(O11:Q11)","v":0}]
[{"$nulls":17},0]
[{"$nulls":17},0]
[{"$nulls":17},0]
[{"$nulls":17},0]
[{"$nulls":17},0]
[{"$nulls":17},0]
[{"$nulls":17},0]
[{"$nulls":17},0]
[{"$nulls":17},0]
[{"$nulls":17},0]
[{"$nulls":17},0]
[{"$nulls":17},0]
[{"$nulls":17},0]
[{"$nulls":17},0]
[]
["Összesen",{"$nulls":10},{"$f":"SUM(L10:L26)","v":1270},{"$f":"SUM(M10:M26)","v":1000},270,{"$f":"SUM(O10:O26)","v":500},{"$f":"SUM(P10:P26)","v":500},0,1000]

{"sheet":"(14) egyéb berendezések","index":7,"n_rows":27,"n_cols":20,"rows_kept":27,"cut":false,"hidden":false,"merged":[[26,0,26,10],[7,10,8,10],[7,11,7,13],[7,14,7,17],[7,18,8,18],[7,19,8,19],[25,0,25,19],[5,0,5,19],[7,0,8,0],[7,1,8,1],[7,2,8,2],[7,3,8,3],[7,4,8,4],[7,5,8,5],[7,6,8,6],[7,7,7,8],[7,9,8,9],[0,0,0,2],[1,0,1,2],[2,0,2,2],[0,3,0,7],[1,3,1,7],[2,3,2,7]]}
["Kedvezményezett neve:",null,null,{"$f":"+'(KNY)könyvvizsgálói nyilatkozat'!$B4","v":"XY Kft."}]
["Szerződésszám:",null,null,{"$f":"+'(KNY)könyvvizsgálói nyilatkozat'!$B5","v":"2018-1.1.1-VKE-2018-00001"}]
["Az elszámolással érintett időszak kezdete és vége:",null,null,{"$f":"+'(KNY)könyvvizsgálói nyilatkozat'!$B6","v":"2018-12-31"}]
[]
[]
["14 Egyéb  berendezések, felszerelések, járművek"]
[]
["Sor-szám","Számviteli bizonylat kiállítójának neve","Adószáma","Számviteli bizonylat sorszáma","Kiállítás kelte","Teljesítés dátuma","Pénzügyi teljesítés időpontja","Amortizációnál az elszámolt időszak",null,"amortizá-ciós kulcs %","Gazdasági esemény rövid leírása","Összege (Ft)",null,null,"Projekt terhére elszámolt költségek (Ft)",null,null,null,"Támogatás típusa","Tám. int."]
["szám",{"$nulls":6},"kezdete (dátum)","vége (dátum)",null,null,"Bruttó","Nettó","ÁFA","Támogatás","Saját forrás","Egyéb f.","Összesen"]
["1.",{"$nulls":10},1270,1000,{"$f":"+L10-M10","v":270},500,500,0,{"$f":"SUM(O10:Q10)","v":1000},"K+F/Alap.",0.5]
["2.",{"$nulls":16},{"$f":"SUM(O11:Q11)","v":0}]
[{"$nulls":17},0]
[{"$nulls":17},0]
[{"$nulls":17},0]
[{"$nulls":17},0]
[{"$nulls":17},0]
[{"$nulls":17},0]
[{"$nulls":17},0]
[{"$nulls":17},0]
[{"$nulls":17},0]
[{"$nulls":17},0]
[{"$nulls":17},0]
[{"$nulls":17},0]
[{"$nulls":17},0]
[{"$nulls":17},0]
[]
["Összesen",{"$nulls":10},{"$f":"SUM(L10:L26)","v":1270},{"$f":"SUM(M10:M26)","v":1000},270,{"$f":"SUM(O10:O26)","v":500},{"$f":"SUM(P10:P26)","v":500},0,1000]

{"sheet":"(16) beruházás,felújítás","index":8,"n_rows":27,"n_cols":20,"rows_kept":27,"cut":false,"hidden":false,"merged":[[0,0,0,2],[1,0,1,2],[2,0,2,2],[0,3,0,7],[1,3,1,7],[2,3,2,7],[5,0,5,19],[7,0,8,0],[7,1,8,1],[7,2,8,2],[7,3,8,3],[7,4,8,4],[7,5,8,5],[7,6,8,6],[7,7,7,8],[7,9,8,9],[7,19,8,19],[26,0,26,10],[7,10,8,10],[7,11,7,13],[7,14,7,17],[7,18,8,18],[25,0,25,19]]}
["Kedvezményezett neve:",null,null,{"$f":"+'(KNY)könyvvizsgálói nyilatkozat'!$B4","v":"XY Kft."}]
["Szerződésszám:",null,null,{"$f":"+'(KNY)könyvvizsgálói nyilatkozat'!$B5","v":"2018-1.1.1-VKE-2018-00001"}]
["Az elszámolással érintett időszak kezdete és vége:",null,null,{"$f":"+'(KNY)könyvvizsgálói nyilatkozat'!$B6","v":"2018-12-31"}]
[]
[]
["16 BERUZÁZÁSOK, FELÚJÍTÁSOK "]
[]
["Sor-szám","Számviteli bizonylat kiállítójának neve","Adószáma","Számviteli bizonylat sorszáma","Kiállítás kelte","Teljesítés dátuma","Pénzügyi teljesítés időpontja","Amortizációnál az elszámolt időszak",null,"amortizá-ciós kulcs %","Gazdasági esemény rövid leírása","Összege (Ft)",null,null,"Projekt terhére elszámolt költségek (Ft)",null,null,null,"Támogatás típusa","Tám. int."]
["szám",{"$nulls":6},"kezdete (dátum)","vége (dátum)",null,null,"Bruttó","Nettó","ÁFA","Támogatás","Saját forrás","Egyéb f.","Összesen"]
["1.",{"$nulls":10},1270,1000,{"$f":"+L10-M10","v":270},500,500,null,{"$f":"SUM(O10:Q10)","v":1000},"Kut.infra.- b.r.",0.25]
["2.",{"$nulls":16},{"$f":"SUM(O11:Q11)","v":0}]
[{"$nulls":17},0]
[{"$nulls":17},0]
[{"$nulls":17},0]
[{"$nulls":17},0]
[{"$nulls":17},0]
[{"$nulls":17},0]
[{"$nulls":17},0]
[{"$nulls":17},0]
[{"$nulls":17},0]
[{"$nulls":17},0]
[{"$nulls":17},0]
[{"$nulls":17},0]
[{"$nulls":17},0]
[{"$nulls":17},0]
[]
["Összesen",{"$nulls":10},{"$f":"SUM(L10:L26)","v":1270},{"$f":"SUM(M10:M26)","v":1000},270,{"$f":"SUM(O10:O26)","v":500},{"$f":"SUM(P10:P26)","v":500},0,1000]

{"sheet":"tám. típus összesítő","index":9,"n_rows":24,"n_cols":57,"rows_kept":24,"cut":false,"hidden":false,"merged":[[23,44,23,46],[2,0,2,4],[2,5,2,12],[2,15,2,19],[2,30,2,34],[2,20,2,27],[22,0,22,2],[22,15,22,17],[3,0,3,12],[2,44,2,48],[23,0,23,2],[23,15,23,17],[23,30,23,32],[3,30,3,42],[4,30,4,42],[0,49,0,56],[22,30,22,32],[0,44,0,48],[4,44,4,56],[1,44,1,48],[1,49,1,56],[0,30,0,34],[22,44,22,46],[1,30,1,34],[2,49,2,56],[0,35,0,42],[1,35,1,42],[2,35,2,42],[1,5,1,12],[4,0,4,12],[0,15,0,19],[4,15,4,27],[0,20,0,27],[0,0,0,4],[1,0,1,4],[1,20,1,27],[1,15,1,19],[0,5,0,12],[3,15,3,27]]}
["Kedvezményezett neve:",{"$nulls":4},{"$f":"+'(KNY)könyvvizsgálói nyilatkozat'!B4","v":"XY Kft."},{"$nulls":9},"Kedvezményezett neve:",{"$nulls":4},{"$f":"F1","v":"XY Kft."},{"$nulls":9},"Kedvezményezett neve:",{"$nulls":4},{"$f":"+F1","v":"XY Kft."},{"$nulls":8},"Kedvezményezett neve:",{"$nulls":4},{"$f":"F1","v":"XY Kft."}]
["Szerződésszám:",{"$nulls":4},{"$f":"+'(KNY)könyvvizsgálói nyilatkozat'!B5","v":"2018-1.1.1-VKE-2018-00001"},{"$nulls":9},"Szerződésszám:",{"$nulls":4},{"$f":"F2","v":"2018-1.1.1-VKE-2018-00001"},{"$nulls":9},"Szerződésszám:",{"$nulls":4},{"$f":"+F2","v":"2018-1.1.1-VKE-2018-00001"},{"$nulls":8},"Szerződésszám:",{"$nulls":4},{"$f":"F2","v":"2018-1.1.1-VKE-2018-00001"}]
["Mérföldkő dátuma:",{"$nulls":4},{"$f":"+'(KNY)könyvvizsgálói nyilatkozat'!B6","v":"2018-12-31"},{"$nulls":9},"Mérföldkő dátuma:",{"$nulls":4},{"$f":"F3","v":"2018-12-31"},{"$nulls":9},"Mérföldkő dátuma:",{"$nulls":4},"2018-12-31",{"$nulls":8},"Mérföldkő dátuma:",{"$nulls":4},{"$f":"F3","v":"2018-12-31"}]
[]
[" TÁMOGATÁS",{"$nulls":14}," SAJÁT FORRÁS",{"$nulls":14},"EGYÉB FORRÁS",{"$nulls":13},"ÖSSZESÍTÉS"]
[]
["sor-szám","támogatás típusa","támog. int.","(54) \nszemélyi juttatások","(56)\njárulék","(51)\nanyagköltség","(52)\nigénybe vett szolgáltatások","(53)\negyéb szolgáltatások","(11)\nimmateriális javak beszerzése","(13)\nműszaki berendezések","(14)\negyéb berendezések","(16)\nberuházás,felújítás","összesen",null,null,"sor-szám","támogatás típusa","támog. int.","(54) \nszemélyi juttatások","(56)\njárulék","(51)\nanyagköltség","(52)\nigénybe vett szolgáltatások","(53)\negyéb szolgáltatások","(11)\nimmateriális javak beszerzése","(13)\nműszaki berendezések","(14)\negyéb berendezések","(16)\nberuházás,felújítás","összesen",null,null,"sor-szám","támogatás típusa","támog. int.","(54) \nszemélyi juttatások","(56)\njárulék","(51)\nanyagköltség","(52)\nigénybe vett szolgáltatások","(53)\negyéb szolgáltatások","(11)\nimmateriális javak beszerzése","(13)\nműszaki berendezések","(14)\negyéb berendezések","(16)\nberuházás,felújítás","összesen",null,"sor-szám","támogatás típusa","támog. int.","(54) \nszemélyi juttatások","(56)\njárulék","(51)\nanyagköltség","(52)\nigénybe vett szolgáltatások","(53)\negyéb szolgáltatások","(11)\nimmateriális javak beszerzése","(13)\nműszaki berendezések","(14)\negyéb berendezések","(16)\nberuházás,felújítás","összesen"]
[1,"K+F/Alap.",0,{"$f":"SUMIF('(54-56) személyi+járulék'!$T:$T,B8,'(54-56) személyi+járulék'!$N:$N)","v":6000},{"$f":"SUMIF('(54-56) személyi+járulék'!$T:$T,B8,'(54-56) személyi+járulék'!$Q:$Q)","v":2000},{"$f":"SUMIF('(51) anyagköltség '!$P:$P,B8,'(51) anyagköltség '!$L:$L)","v":0},{"$f":"SUMIF('(52) igénybe vett szolg'!$P:$P,B8,'(52) igénybe vett szolg'!$L:$L)","v":500},{"$f":"SUMIF('(53) egyéb szolgáltatások'!$P:$P,$B8,'(52) igénybe vett szolg'!$L:$L)","v":500},{"$f":"SUMIF('(11) immat jav beszerz'!$S:$S,$B8,'(11) immat jav beszerz'!$O:$O)","v":0},{"$f":"SUMIF('(13) műszaki berendezések'!$S:$S,$B8,'(13) műszaki berendezések'!$O:$O)","v":500},{"$f":"SUMIF('(14) egyéb berendezések'!$S:$S,$B8,'(14) egyéb berendezések'!$O:$O)","v":500},{"$f":"SUMIF('(16) beruházás,felújítás'!$S:$S,$B8,'(16) beruházás,felújítás'!$O:$O)","v":0},{"$f":"SUM(C8:L8)","v":10000},null,null,1,"K+F/Alap.",0,{"$f":"SUMIF('(54-56) személyi+járulék'!$T:$T,Q8,'(54-56) személyi+járulék'!$O:$O)","v":0},{"$f":"SUMIF('(54-56) személyi+járulék'!$T:$T,Q8,'(54-56) személyi+járulék'!$R:$R)","v":0},{"$f":"SUMIF('(51) anyagköltség '!$P:$P,Q8,'(51) anyagköltség '!$M:$M)","v":0},{"$f":"SUMIF('(52) igénybe vett szolg'!$P:$P,Q8,'(52) igénybe vett szolg'!$M:$M)","v":500},{"$f":"SUMIF('(53) egyéb szolgáltatások'!$P:$P,$B8,'(52) igénybe vett szolg'!$M:$M)","v":500},{"$f":"SUMIF('(11) immat jav beszerz'!$S:$S,$B8,'(11) immat jav beszerz'!$P:$P)","v":0},{"$f":"SUMIF('(13) műszaki berendezések'!$S:$S,$B8,'(13) műszaki berendezések'!$P:$P)","v":500},{"$f":"SUMIF('(14) egyéb berendezések'!$S:$S,$B8,'(14) egyéb berendezések'!$P:$P)","v":500},{"$f":"SUMIF('(16) beruházás,felújítás'!$S:$S,$B8,'(16) beruházás,felújítás'!$P:$P)","v":0},{"$f":"SUM(R8:AA8)","v":2000},null,null,1,"K+F/Alap.",0,{"$f":"SUMIF('(54-56) személyi+járulék'!$T:$T,AF8,'(54-56) személyi+járulék'!$P:$P)","v":0},{"$f":"SUMIF('(54-56) személyi+járulék'!$T:$T,AF8,'(54-56) személyi+járulék'!$S:$S)","v":0},{"$f":"SUMIF('(51) anyagköltség '!$P:$P,AF8,'(51) anyagköltség '!$N:$N)","v":0},{"$f":"SUMIF('(52) igénybe vett szolg'!$P:$P,AF8,'(52) igénybe vett szolg'!$N:$N)","v":0},{"$f":"SUMIF('(53) egyéb szolgáltatások'!$P:$P,$B8,'(52) igénybe vett szolg'!$N:$N)","v":0},{"$f":"SUMIF('(11) immat jav beszerz'!$S:$S,$B8,'(11) immat jav beszerz'!$Q:$Q)","v":0},{"$f":"SUMIF('(13) műszaki berendezések'!$S:$S,$B8,'(13) műszaki berendezések'!$Q:$Q)","v":0},{"$f":"SUMIF('(14) egyéb berendezések'!$S:$S,$B8,'(14) egyéb berendezések'!$Q:$Q)","v":0},{"$f":"SUMIF('(16) beruházás,felújítás'!$S:$S,$B8,'(16) beruházás,felújítás'!$Q:$Q)","v":0},{"$f":"SUM(AG8:AP8)","v":0},null,1,"K+F/Alap.",0,{"$f":"+D8+S8+AH8","v":6000},{"$f":"+E8+T8+AI8","v":2000},0,1000,1000,0,1000,1000,0,{"$f":"SUM(AU8:BD8)","v":12000}]
[2,"K+F/Alkalm.",0,{"$f":"SUMIF('(54-56) személyi+járulék'!$T:$T,B9,'(54-56) személyi+járulék'!$N:$N)","v":0},{"$f":"SUMIF('(54-56) személyi+járulék'!$T:$T,B9,'(54-56) személyi+járulék'!$Q:$Q)","v":0},{"$f":"SUMIF('(51) anyagköltség '!$P:$P,B9,'(51) anyagköltség '!$L:$L)","v":0},{"$f":"SUMIF('(52) igénybe vett szolg'!$P:$P,B9,'(52) igénybe vett szolg'!$L:$L)","v":0},{"$f":"SUMIF('(53) egyéb szolgáltatások'!$P:$P,$B9,'(52) igénybe vett szolg'!$L:$L)","v":0},{"$f":"SUMIF('(11) immat jav beszerz'!$S:$S,$B9,'(11) immat jav beszerz'!$O:$O)","v":0},{"$f":"SUMIF('(13) műszaki berendezések'!$S:$S,$B9,'(13) műszaki berendezések'!$O:$O)","v":0},{"$f":"SUMIF('(14) egyéb berendezések'!$S:$S,$B9,'(14) egyéb berendezések'!$O:$O)","v":0},{"$f":"SUMIF('(16) beruházás,felújítás'!$S:$S,$B9,'(16) beruházás,felújítás'!$O:$O)","v":0},{"$f":"SUM(C9:L9)","v":0},null,null,2,"K+F/Alkalm.",0,{"$f":"SUMIF('(54-56) személyi+járulék'!$T:$T,Q9,'(54-56) személyi+járulék'!$O:$O)","v":0},{"$f":"SUMIF('(54-56) személyi+járulék'!$T:$T,Q9,'(54-56) személyi+járulék'!$R:$R)","v":0},{"$f":"SUMIF('(51) anyagköltség '!$P:$P,Q9,'(51) anyagköltség '!$M:$M)","v":0},{"$f":"SUMIF('(52) igénybe vett szolg'!$P:$P,Q9,'(52) igénybe vett szolg'!$M:$M)","v":0},{"$f":"SUMIF('(53) egyéb szolgáltatások'!$P:$P,$B9,'(52) igénybe vett szolg'!$M:$M)","v":0},{"$f":"SUMIF('(11) immat jav beszerz'!$S:$S,$B9,'(11) immat jav beszerz'!$P:$P)","v":0},{"$f":"SUMIF('(13) műszaki berendezések'!$S:$S,$B9,'(13) műszaki berendezések'!$P:$P)","v":0},{"$f":"SUMIF('(14) egyéb berendezések'!$S:$S,$B9,'(14) egyéb berendezések'!$P:$P)","v":0},{"$f":"SUMIF('(16) beruházás,felújítás'!$S:$S,$B9,'(16) beruházás,felújítás'!$P:$P)","v":0},{"$f":"SUM(R9:AA9)","v":0},null,null,2,"K+F/Alkalm.",0,{"$f":"SUMIF('(54-56) személyi+járulék'!$T:$T,AF9,'(54-56) személyi+járulék'!$P:$P)","v":0},{"$f":"SUMIF('(54-56) személyi+járulék'!$T:$T,AF9,'(54-56) személyi+járulék'!$S:$S)","v":0},{"$f":"SUMIF('(51) anyagköltség '!$P:$P,AF9,'(51) anyagköltség '!$N:$N)","v":0},{"$f":"SUMIF('(52) igénybe vett szolg'!$P:$P,AF9,'(52) igénybe vett szolg'!$N:$N)","v":0},{"$f":"SUMIF('(53) egyéb szolgáltatások'!$P:$P,$B9,'(52) igénybe vett szolg'!$N:$N)","v":0},{"$f":"SUMIF('(11) immat jav beszerz'!$S:$S,$B9,'(11) immat jav beszerz'!$Q:$Q)","v":0},{"$f":"SUMIF('(13) műszaki berendezések'!$S:$S,$B9,'(13) műszaki berendezések'!$Q:$Q)","v":0},{"$f":"SUMIF('(14) egyéb berendezések'!$S:$S,$B9,'(14) egyéb berendezések'!$Q:$Q)","v":0},{"$f":"SUMIF('(16) beruházás,felújítás'!$S:$S,$B9,'(16) beruházás,felújítás'!$Q:$Q)","v":0},{"$f":"SUM(AG9:AP9)","v":0},null,2,"K+F/Alkalm.",0,{"$f":"+D9+S9+AH9","v":0},{"$f":"+E9+T9+AI9","v":0},{"$f":"+F9+U9+AJ9","v":0},{"$f":"+G9+V9+AK9","v":0},{"$f":"+H9+W9+AL9","v":0},{"$f":"+I9+X9+AM9","v":0},{"$f":"+J9+Y9+AN9","v":0},{"$f":"+K9+Z9+AO9","v":0},{"$f":"+L9+AA9+AP9","v":0},{"$f":"SUM(AU9:BD9)","v":0}]
[3,"K+F/Kis.fejl.",0,{"$f":"SUMIF('(54-56) személyi+járulék'!$T:$T,B10,'(54-56) személyi+járulék'!$N:$N)","v":0},{"$f":"SUMIF('(54-56) személyi+járulék'!$T:$T,B10,'(54-56) személyi+járulék'!$Q:$Q)","v":0},{"$f":"SUMIF('(51) anyagköltség '!$P:$P,B10,'(51) anyagköltség '!$L:$L)","v":0},{"$f":"SUMIF('(52) igénybe vett szolg'!$P:$P,B10,'(52) igénybe vett szolg'!$L:$L)","v":0},{"$f":"SUMIF('(53) egyéb szolgáltatások'!$P:$P,$B10,'(52) igénybe vett szolg'!$L:$L)","v":0},{"$f":"SUMIF('(11) immat jav beszerz'!$S:$S,$B10,'(11) immat jav beszerz'!$O:$O)","v":0},{"$f":"SUMIF('(13) műszaki berendezések'!$S:$S,$B10,'(13) műszaki berendezések'!$O:$O)","v":0},{"$f":"SUMIF('(14) egyéb berendezések'!$S:$S,$B10,'(14) egyéb berendezések'!$O:$O)","v":0},{"$f":"SUMIF('(16) beruházás,felújítás'!$S:$S,$B10,'(16) beruházás,felújítás'!$O:$O)","v":0},0,null,null,3,"K+F/Kis.fejl.",0,{"$f":"SUMIF('(54-56) személyi+járulék'!$T:$T,Q10,'(54-56) személyi+járulék'!$O:$O)","v":0},{"$f":"SUMIF('(54-56) személyi+járulék'!$T:$T,Q10,'(54-56) személyi+járulék'!$R:$R)","v":0},{"$f":"SUMIF('(51) anyagköltség '!$P:$P,Q10,'(51) anyagköltség '!$M:$M)","v":0},{"$f":"SUMIF('(52) igénybe vett szolg'!$P:$P,Q10,'(52) igénybe vett szolg'!$M:$M)","v":0},{"$f":"SUMIF('(53) egyéb szolgáltatások'!$P:$P,$B10,'(52) igénybe vett szolg'!$M:$M)","v":0},{"$f":"SUMIF('(11) immat jav beszerz'!$S:$S,$B10,'(11) immat jav beszerz'!$P:$P)","v":0},{"$f":"SUMIF('(13) műszaki berendezések'!$S:$S,$B10,'(13) műszaki berendezések'!$P:$P)","v":0},{"$f":"SUMIF('(14) egyéb berendezések'!$S:$S,$B10,'(14) egyéb berendezések'!$P:$P)","v":0},{"$f":"SUMIF('(16) beruházás,felújítás'!$S:$S,$B10,'(16) beruházás,felújítás'!$P:$P)","v":0},0,null,null,3,"K+F/Kis.fejl.",0,{"$f":"SUMIF('(54-56) személyi+járulék'!AX:AX,AF10,'(54-56) személyi+járulék'!$P:$P)","v":0},{"$f":"SUMIF('(54-56) személyi+járulék'!$T:$T,AF10,'(54-56) személyi+járulék'!$S:$S)","v":0},{"$f":"SUMIF('(51) anyagköltség '!$P:$P,AF10,'(51) anyagköltség '!$N:$N)","v":0},{"$f":"SUMIF('(52) igénybe vett szolg'!$P:$P,AF10,'(52) igénybe vett szolg'!$N:$N)","v":0},{"$f":"SUMIF('(53) egyéb szolgáltatások'!$P:$P,$B10,'(52) igénybe vett szolg'!$N:$N)","v":0},{"$f":"SUMIF('(11) immat jav beszerz'!$S:$S,$B10,'(11) immat jav beszerz'!$Q:$Q)","v":0},{"$f":"SUMIF('(13) műszaki berendezések'!$S:$S,$B10,'(13) műszaki berendezések'!$Q:$Q)","v":0},{"$f":"SUMIF('(14) egyéb berendezések'!$S:$S,$B10,'(14) egyéb berendezések'!$Q:$Q)","v":0},{"$f":"SUMIF('(16) beruházás,felújítás'!$S:$S,$B10,'(16) beruházás,felújítás'!$Q:$Q)","v":0},0,null,3,"K+F/Kis.fejl.",0,0,0,0,0,0,0,0,0,0,0]
[4,"D.M./Közbesz.",0,{"$f":"SUMIF('(54-56) személyi+járulék'!$T:$T,B11,'(54-56) személyi+járulék'!$N:$N)","v":0},{"$f":"SUMIF('(54-56) személyi+járulék'!$T:$T,B11,'(54-56) személyi+járulék'!$Q:$Q)","v":0},{"$f":"SUMIF('(51) anyagköltség '!$P:$P,B11,'(51) anyagköltség '!$L:$L)","v":0},{"$f":"SUMIF('(52) igénybe vett szolg'!$P:$P,B11,'(52) igénybe vett szolg'!$L:$L)","v":0},{"$f":"SUMIF('(53) egyéb szolgáltatások'!$P:$P,$B11,'(52) igénybe vett szolg'!$L:$L)","v":0},{"$f":"SUMIF('(11) immat jav beszerz'!$S:$S,$B11,'(11) immat jav beszerz'!$O:$O)","v":0},{"$f":"SUMIF('(13) műszaki berendezések'!$S:$S,$B11,'(13) műszaki berendezések'!$O:$O)","v":0},{"$f":"SUMIF('(14) egyéb berendezések'!$S:$S,$B11,'(14) egyéb berendezések'!$O:$O)","v":0},{"$f":"SUMIF('(16) beruházás,felújítás'!$S:$S,$B11,'(16) beruházás,felújítás'!$O:$O)","v":0},0,null,null,4,"D.M./Közbesz.",0,{"$f":"SUMIF('(54-56) személyi+járulék'!$T:$T,Q11,'(54-56) személyi+járulék'!$O:$O)","v":0},{"$f":"SUMIF('(54-56) személyi+járulék'!$T:$T,Q11,'(54-56) személyi+járulék'!$R:$R)","v":0},{"$f":"SUMIF('(51) anyagköltség '!$P:$P,Q11,'(51) anyagköltség '!$M:$M)","v":0},{"$f":"SUMIF('(52) igénybe vett szolg'!$P:$P,Q11,'(52) igénybe vett szolg'!$M:$M)","v":0},{"$f":"SUMIF('(53) egyéb szolgáltatások'!$P:$P,$B11,'(52) igénybe vett szolg'!$M:$M)","v":0},{"$f":"SUMIF('(11) immat jav beszerz'!$S:$S,$B11,'(11) immat jav beszerz'!$P:$P)","v":0},{"$f":"SUMIF('(13) műszaki berendezések'!$S:$S,$B11,'(13) műszaki berendezések'!$P:$P)","v":0},{"$f":"SUMIF('(14) egyéb berendezések'!$S:$S,$B11,'(14) egyéb berendezések'!$P:$P)","v":0},{"$f":"SUMIF('(16) beruházás,felújítás'!$S:$S,$B11,'(16) beruházás,felújítás'!$P:$P)","v":0},0,null,null,4,"D.M./Közbesz.",0,{"$f":"SUMIF('(54-56) személyi+járulék'!AX:AX,AF11,'(54-56) személyi+járulék'!$P:$P)","v":0},{"$f":"SUMIF('(54-56) személyi+járulék'!$T:$T,AF11,'(54-56) személyi+járulék'!$S:$S)","v":0},{"$f":"SUMIF('(51) anyagköltség '!$P:$P,AF11,'(51) anyagköltség '!$N:$N)","v":0},{"$f":"SUMIF('(52) igénybe vett szolg'!$P:$P,AF11,'(52) igénybe vett szolg'!$N:$N)","v":0},{"$f":"SUMIF('(53) egyéb szolgáltatások'!$P:$P,$B11,'(52) igénybe vett szolg'!$N:$N)","v":0},{"$f":"SUMIF('(11) immat jav beszerz'!$S:$S,$B11,'(11) immat jav beszerz'!$Q:$Q)","v":0},{"$f":"SUMIF('(13) műszaki berendezések'!$S:$S,$B11,'(13) műszaki berendezések'!$Q:$Q)","v":0},{"$f":"SUMIF('(14) egyéb berendezések'!$S:$S,$B11,'(14) egyéb berendezések'!$Q:$Q)","v":0},{"$f":"SUMIF('(16) beruházás,felújítás'!$S:$S,$B11,'(16) beruházás,felújítás'!$Q:$Q)","v":0},0,null,4,"D.M./Közbesz.",0,0,0,0,0,0,0,0,0,0,0]
[5,"D.M./Koord.",0,{"$f":"SUMIF('(54-56) személyi+járulék'!$T:$T,B12,'(54-56) személyi+járulék'!$N:$N)","v":0},{"$f":"SUMIF('(54-56) személyi+járulék'!$T:$T,B12,'(54-56) személyi+járulék'!$Q:$Q)","v":0},{"$f":"SUMIF('(51) anyagköltség '!$P:$P,B12,'(51) anyagköltség '!$L:$L)","v":0},{"$f":"SUMIF('(52) igénybe vett szolg'!$P:$P,B12,'(52) igénybe vett szolg'!$L:$L)","v":0},{"$f":"SUMIF('(53) egyéb szolgáltatások'!$P:$P,$B12,'(52) igénybe vett szolg'!$L:$L)","v":0},{"$f":"SUMIF('(11) immat jav beszerz'!$S:$S,$B12,'(11) immat jav beszerz'!$O:$O)","v":0},{"$f":"SUMIF('(13) műszaki berendezések'!$S:$S,$B12,'(13) műszaki berendezések'!$O:$O)","v":0},{"$f":"SUMIF('(14) egyéb berendezések'!$S:$S,$B12,'(14) egyéb berendezések'!$O:$O)","v":0},{"$f":"SUMIF('(16) beruházás,felújítás'!$S:$S,$B12,'(16) beruházás,felújítás'!$O:$O)","v":0},0,null,null,5,"D.M./Koord.",0,{"$f":"SUMIF('(54-56) személyi+járulék'!$T:$T,Q12,'(54-56) személyi+járulék'!$O:$O)","v":0},{"$f":"SUMIF('(54-56) személyi+járulék'!$T:$T,Q12,'(54-56) személyi+járulék'!$R:$R)","v":0},{"$f":"SUMIF('(51) anyagköltség '!$P:$P,Q12,'(51) anyagköltség '!$M:$M)","v":0},{"$f":"SUMIF('(52) igénybe vett szolg'!$P:$P,Q12,'(52) igénybe vett szolg'!$M:$M)","v":0},{"$f":"SUMIF('(53) egyéb szolgáltatások'!$P:$P,$B12,'(52) igénybe vett szolg'!$M:$M)","v":0},{"$f":"SUMIF('(11) immat jav beszerz'!$S:$S,$B12,'(11) immat jav beszerz'!$P:$P)","v":0},{"$f":"SUMIF('(13) műszaki berendezések'!$S:$S,$B12,'(13) műszaki berendezések'!$P:$P)","v":0},{"$f":"SUMIF('(14) egyéb berendezések'!$S:$S,$B12,'(14) egyéb berendezések'!$P:$P)","v":0},{"$f":"SUMIF('(16) beruházás,felújítás'!$S:$S,$B12,'(16) beruházás,felújítás'!$P:$P)","v":0},0,null,null,5,"D.M./Koord.",0,{"$f":"SUMIF('(54-56) személyi+járulék'!AX:AX,AF12,'(54-56) személyi+járulék'!$P:$P)","v":0},{"$f":"SUMIF('(54-56) személyi+járulék'!$T:$T,AF12,'(54-56) személyi+járulék'!$S:$S)","v":0},{"$f":"SUMIF('(51) anyagköltség '!$P:$P,AF12,'(51) anyagköltség '!$N:$N)","v":0},{"$f":"SUMIF('(52) igénybe vett szolg'!$P:$P,AF12,'(52) igénybe vett szolg'!$N:$N)","v":0},{"$f":"SUMIF('(53) egyéb szolgáltatások'!$P:$P,$B12,'(52) igénybe vett szolg'!$N:$N)","v":0},{"$f":"SUMIF('(11) immat jav beszerz'!$S:$S,$B12,'(11) immat jav beszerz'!$Q:$Q)","v":0},{"$f":"SUMIF('(13) műszaki berendezések'!$S:$S,$B12,'(13) műszaki berendezések'!$Q:$Q)","v":0},{"$f":"SUMIF('(14) egyéb berendezések'!$S:$S,$B12,'(14) egyéb berendezések'!$Q:$Q)","v":0},{"$f":"SUMIF('(16) beruházás,felújítás'!$S:$S,$B12,'(16) beruházás,felújítás'!$Q:$Q)","v":0},0,null,5,"D.M./Koord.",0,0,0,0,0,0,0,0,0,0,0]
[6,"D.M./Tájék.",0,{"$f":"SUMIF('(54-56) személyi+járulék'!$T:$T,B13,'(54-56) személyi+járulék'!$N:$N)","v":0},{"$f":"SUMIF('(54-56) személyi+járulék'!$T:$T,B13,'(54-56) személyi+járulék'!$Q:$Q)","v":0},{"$f":"SUMIF('(51) anyagköltség '!$P:$P,B13,'(51) anyagköltség '!$L:$L)","v":0},{"$f":"SUMIF('(52) igénybe vett szolg'!$P:$P,B13,'(52) igénybe vett szolg'!$L:$L)","v":0},{"$f":"SUMIF('(53) egyéb szolgáltatások'!$P:$P,$B13,'(52) igénybe vett szolg'!$L:$L)","v":0},{"$f":"SUMIF('(11) immat jav beszerz'!$S:$S,$B13,'(11) immat jav beszerz'!$O:$O)","v":0},{"$f":"SUMIF('(13) műszaki berendezések'!$S:$S,$B13,'(13) műszaki berendezések'!$O:$O)","v":0},{"$f":"SUMIF('(14) egyéb berendezések'!$S:$S,$B13,'(14) egyéb berendezések'!$O:$O)","v":0},{"$f":"SUMIF('(16) beruházás,felújítás'!$S:$S,$B13,'(16) beruházás,felújítás'!$O:$O)","v":0},0,null,null,6,"D.M./Tájék.",0,{"$f":"SUMIF('(54-56) személyi+járulék'!$T:$T,Q13,'(54-56) személyi+járulék'!$O:$O)","v":0},{"$f":"SUMIF('(54-56) személyi+járulék'!$T:$T,Q13,'(54-56) személyi+járulék'!$R:$R)","v":0},{"$f":"SUMIF('(51) anyagköltség '!$P:$P,Q13,'(51) anyagköltség '!$M:$M)","v":0},{"$f":"SUMIF('(52) igénybe vett szolg'!$P:$P,Q13,'(52) igénybe vett szolg'!$M:$M)","v":0},{"$f":"SUMIF('(53) egyéb szolgáltatások'!$P:$P,$B13,'(52) igénybe vett szolg'!$M:$M)","v":0},{"$f":"SUMIF('(11) immat jav beszerz'!$S:$S,$B13,'(11) immat jav beszerz'!$P:$P)","v":0},{"$f":"SUMIF('(13) műszaki berendezések'!$S:$S,$B13,'(13) műszaki berendezések'!$P:$P)","v":0},{"$f":"SUMIF('(14) egyéb berendezések'!$S:$S,$B13,'(14) egyéb berendezések'!$P:$P)","v":0},{"$f":"SUMIF('(16) beruházás,felújítás'!$S:$S,$B13,'(16) beruházás,felújítás'!$P:$P)","v":0},0,null,null,6,"D.M./Tájék.",0,{"$f":"SUMIF('(54-56) személyi+járulék'!AX:AX,AF13,'(54-56) személyi+járulék'!$P:$P)","v":0},{"$f":"SUMIF('(54-56) személyi+járulék'!$T:$T,AF13,'(54-56) személyi+járulék'!$S:$S)","v":0},{"$f":"SUMIF('(51) anyagköltség '!$P:$P,AF13,'(51) anyagköltség '!$N:$N)","v":0},{"$f":"SUMIF('(52) igénybe vett szolg'!$P:$P,AF13,'(52) igénybe vett szolg'!$N:$N)","v":0},{"$f":"SUMIF('(53) egyéb szolgáltatások'!$P:$P,$B13,'(52) igénybe vett szolg'!$N:$N)","v":0},{"$f":"SUMIF('(11) immat jav beszerz'!$S:$S,$B13,'(11) immat jav beszerz'!$Q:$Q)","v":0},{"$f":"SUMIF('(13) műszaki berendezések'!$S:$S,$B13,'(13) műszaki berendezések'!$Q:$Q)","v":0},{"$f":"SUMIF('(14) egyéb berendezések'!$S:$S,$B13,'(14) egyéb berendezések'!$Q:$Q)","v":0},{"$f":"SUMIF('(16) beruházás,felújítás'!$S:$S,$B13,'(16) beruházás,felújítás'!$Q:$Q)","v":0},0,null,6,"D.M./Tájék.",0,0,0,0,0,0,0,0,0,0,0]
[7,"D.M./Piac",0,{"$f":"SUMIF('(54-56) személyi+járulék'!$T:$T,B14,'(54-56) személyi+járulék'!$N:$N)","v":0},{"$f":"SUMIF('(54-56) személyi+járulék'!$T:$T,B14,'(54-56) személyi+járulék'!$Q:$Q)","v":0},{"$f":"SUMIF('(51) anyagköltség '!$P:$P,B14,'(51) anyagköltség '!$L:$L)","v":0},{"$f":"SUMIF('(52) igénybe vett szolg'!$P:$P,B14,'(52) igénybe vett szolg'!$L:$L)","v":0},{"$f":"SUMIF('(53) egyéb szolgáltatások'!$P:$P,$B14,'(52) igénybe vett szolg'!$L:$L)","v":0},{"$f":"SUMIF('(11) immat jav beszerz'!$S:$S,$B14,'(11) immat jav beszerz'!$O:$O)","v":0},{"$f":"SUMIF('(13) műszaki berendezések'!$S:$S,$B14,'(13) műszaki berendezések'!$O:$O)","v":0},{"$f":"SUMIF('(14) egyéb berendezések'!$S:$S,$B14,'(14) egyéb berendezések'!$O:$O)","v":0},{"$f":"SUMIF('(16) beruházás,felújítás'!$S:$S,$B14,'(16) beruházás,felújítás'!$O:$O)","v":0},0,null,null,7,"D.M./Piac",0,{"$f":"SUMIF('(54-56) személyi+járulék'!$T:$T,Q14,'(54-56) személyi+járulék'!$O:$O)","v":0},{"$f":"SUMIF('(54-56) személyi+járulék'!$T:$T,Q14,'(54-56) személyi+járulék'!$R:$R)","v":0},{"$f":"SUMIF('(51) anyagköltség '!$P:$P,Q14,'(51) anyagköltség '!$M:$M)","v":0},{"$f":"SUMIF('(52) igénybe vett szolg'!$P:$P,Q14,'(52) igénybe vett szolg'!$M:$M)","v":0},{"$f":"SUMIF('(53) egyéb szolgáltatások'!$P:$P,$B14,'(52) igénybe vett szolg'!$M:$M)","v":0},{"$f":"SUMIF('(11) immat jav beszerz'!$S:$S,$B14,'(11) immat jav beszerz'!$P:$P)","v":0},{"$f":"SUMIF('(13) műszaki berendezések'!$S:$S,$B14,'(13) műszaki berendezések'!$P:$P)","v":0},{"$f":"SUMIF('(14) egyéb berendezések'!$S:$S,$B14,'(14) egyéb berendezések'!$P:$P)","v":0},{"$f":"SUMIF('(16) beruházás,felújítás'!$S:$S,$B14,'(16) beruházás,felújítás'!$P:$P)","v":0},0,null,null,7,"D.M./Piac",0,{"$f":"SUMIF('(54-56) személyi+járulék'!AX:AX,AF14,'(54-56) személyi+járulék'!$P:$P)","v":0},{"$f":"SUMIF('(54-56) személyi+járulék'!$T:$T,AF14,'(54-56) személyi+járulék'!$S:$S)","v":0},{"$f":"SUMIF('(51) anyagköltség '!$P:$P,AF14,'(51) anyagköltség '!$N:$N)","v":0},{"$f":"SUMIF('(52) igénybe vett szolg'!$P:$P,AF14,'(52) igénybe vett szolg'!$N:$N)","v":0},{"$f":"SUMIF('(53) egyéb szolgáltatások'!$P:$P,$B14,'(52) igénybe vett szolg'!$N:$N)","v":0},{"$f":"SUMIF('(11) immat jav beszerz'!$S:$S,$B14,'(11) immat jav beszerz'!$Q:$Q)","v":0},{"$f":"SUMIF('(13) műszaki berendezések'!$S:$S,$B14,'(13) műszaki berendezések'!$Q:$Q)","v":0},{"$f":"SUMIF('(14) egyéb berendezések'!$S:$S,$B14,'(14) egyéb berendezések'!$Q:$Q)","v":0},{"$f":"SUMIF('(16) beruházás,felújítás'!$S:$S,$B14,'(16) beruházás,felújítás'!$Q:$Q)","v":0},0,null,7,"D.M./Piac",0,0,0,0,0,0,0,0,0,0,0]
[8,"D.M./Iparjog",0,{"$f":"SUMIF('(54-56) személyi+járulék'!$T:$T,B15,'(54-56) személyi+járulék'!$N:$N)","v":0},{"$f":"SUMIF('(54-56) személyi+járulék'!$T:$T,B15,'(54-56) személyi+járulék'!$Q:$Q)","v":0},{"$f":"SUMIF('(51) anyagköltség '!$P:$P,B15,'(51) anyagköltség '!$L:$L)","v":0},{"$f":"SUMIF('(52) igénybe vett szolg'!$P:$P,B15,'(52) igénybe vett szolg'!$L:$L)","v":0},{"$f":"SUMIF('(53) egyéb szolgáltatások'!$P:$P,$B15,'(52) igénybe vett szolg'!$L:$L)","v":0},{"$f":"SUMIF('(11) immat jav beszerz'!$S:$S,$B15,'(11) immat jav beszerz'!$O:$O)","v":0},{"$f":"SUMIF('(13) műszaki berendezések'!$S:$S,$B15,'(13) műszaki berendezések'!$O:$O)","v":0},{"$f":"SUMIF('(14) egyéb berendezések'!$S:$S,$B15,'(14) egyéb berendezések'!$O:$O)","v":0},{"$f":"SUMIF('(16) beruházás,felújítás'!$S:$S,$B15,'(16) beruházás,felújítás'!$O:$O)","v":0},0,null,null,8,"D.M./Iparjog",0,{"$f":"SUMIF('(54-56) személyi+járulék'!$T:$T,Q15,'(54-56) személyi+járulék'!$O:$O)","v":0},{"$f":"SUMIF('(54-56) személyi+járulék'!$T:$T,Q15,'(54-56) személyi+járulék'!$R:$R)","v":0},{"$f":"SUMIF('(51) anyagköltség '!$P:$P,Q15,'(51) anyagköltség '!$M:$M)","v":0},{"$f":"SUMIF('(52) igénybe vett szolg'!$P:$P,Q15,'(52) igénybe vett szolg'!$M:$M)","v":0},{"$f":"SUMIF('(53) egyéb szolgáltatások'!$P:$P,$B15,'(52) igénybe vett szolg'!$M:$M)","v":0},{"$f":"SUMIF('(11) immat jav beszerz'!$S:$S,$B15,'(11) immat jav beszerz'!$P:$P)","v":0},{"$f":"SUMIF('(13) műszaki berendezések'!$S:$S,$B15,'(13) műszaki berendezések'!$P:$P)","v":0},{"$f":"SUMIF('(14) egyéb berendezések'!$S:$S,$B15,'(14) egyéb berendezések'!$P:$P)","v":0},{"$f":"SUMIF('(16) beruházás,felújítás'!$S:$S,$B15,'(16) beruházás,felújítás'!$P:$P)","v":0},0,null,null,8,"D.M./Iparjog",0,{"$f":"SUMIF('(54-56) személyi+járulék'!AX:AX,AF15,'(54-56) személyi+járulék'!$P:$P)","v":0},{"$f":"SUMIF('(54-56) személyi+járulék'!$T:$T,AF15,'(54-56) személyi+járulék'!$S:$S)","v":0},{"$f":"SUMIF('(51) anyagköltség '!$P:$P,AF15,'(51) anyagköltség '!$N:$N)","v":0},{"$f":"SUMIF('(52) igénybe vett szolg'!$P:$P,AF15,'(52) igénybe vett szolg'!$N:$N)","v":0},{"$f":"SUMIF('(53) egyéb szolgáltatások'!$P:$P,$B15,'(52) igénybe vett szolg'!$N:$N)","v":0},{"$f":"SUMIF('(11) immat jav beszerz'!$S:$S,$B15,'(11) immat jav beszerz'!$Q:$Q)","v":0},{"$f":"SUMIF('(13) műszaki berendezések'!$S:$S,$B15,'(13) műszaki berendezések'!$Q:$Q)","v":0},{"$f":"SUMIF('(14) egyéb berendezések'!$S:$S,$B15,'(14) egyéb berendezések'!$Q:$Q)","v":0},{"$f":"SUMIF('(16) beruházás,felújítás'!$S:$S,$B15,'(16) beruházás,felújítás'!$Q:$Q)","v":0},0,null,8,"D.M./Iparjog",0,0,0,0,0,0,0,0,0,0,0]
[9,"D.M./Rezsi",0,{"$f":"SUMIF('(54-56) személyi+járulék'!$T:$T,B16,'(54-56) személyi+járulék'!$N:$N)","v":0},{"$f":"SUMIF('(54-56) személyi+járulék'!$T:$T,B16,'(54-56) személyi+járulék'!$Q:$Q)","v":0},{"$f":"SUMIF('(51) anyagköltség '!$P:$P,B16,'(51) anyagköltség '!$L:$L)","v":0},{"$f":"SUMIF('(52) igénybe vett szolg'!$P:$P,B16,'(52) igénybe vett szolg'!$L:$L)","v":0},{"$f":"SUMIF('(53) egyéb szolgáltatások'!$P:$P,$B16,'(52) igénybe vett szolg'!$L:$L)","v":0},{"$f":"SUMIF('(11) immat jav beszerz'!$S:$S,$B16,'(11) immat jav beszerz'!$O:$O)","v":0},{"$f":"SUMIF('(13) műszaki berendezések'!$S:$S,$B16,'(13) műszaki berendezések'!$O:$O)","v":0},{"$f":"SUMIF('(14) egyéb berendezések'!$S:$S,$B16,'(14) egyéb berendezések'!$O:$O)","v":0},{"$f":"SUMIF('(16) beruházás,felújítás'!$S:$S,$B16,'(16) beruházás,felújítás'!$O:$O)","v":0},0,null,null,9,"D.M./Rezsi",0,{"$f":"SUMIF('(54-56) személyi+járulék'!$T:$T,Q16,'(54-56) személyi+járulék'!$O:$O)","v":0},{"$f":"SUMIF('(54-56) személyi+járulék'!$T:$T,Q16,'(54-56) személyi+járulék'!$R:$R)","v":0},{"$f":"SUMIF('(51) anyagköltség '!$P:$P,Q16,'(51) anyagköltség '!$M:$M)","v":0},{"$f":"SUMIF('(52) igénybe vett szolg'!$P:$P,Q16,'(52) igénybe vett szolg'!$M:$M)","v":0},{"$f":"SUMIF('(53) egyéb szolgáltatások'!$P:$P,$B16,'(52) igénybe vett szolg'!$M:$M)","v":0},{"$f":"SUMIF('(11) immat jav beszerz'!$S:$S,$B16,'(11) immat jav beszerz'!$P:$P)","v":0},{"$f":"SUMIF('(13) műszaki berendezések'!$S:$S,$B16,'(13) műszaki berendezések'!$P:$P)","v":0},{"$f":"SUMIF('(14) egyéb berendezések'!$S:$S,$B16,'(14) egyéb berendezések'!$P:$P)","v":0},{"$f":"SUMIF('(16) beruházás,felújítás'!$S:$S,$B16,'(16) beruházás,felújítás'!$P:$P)","v":0},0,null,null,9,"D.M./Rezsi",0,{"$f":"SUMIF('(54-56) személyi+járulék'!AX:AX,AF16,'(54-56) személyi+járulék'!$P:$P)","v":0},{"$f":"SUMIF('(54-56) személyi+járulék'!$T:$T,AF16,'(54-56) személyi+járulék'!$S:$S)","v":0},{"$f":"SUMIF('(51) anyagköltség '!$P:$P,AF16,'(51) anyagköltség '!$N:$N)","v":0},{"$f":"SUMIF('(52) igénybe vett szolg'!$P:$P,AF16,'(52) igénybe vett szolg'!$N:$N)","v":0},{"$f":"SUMIF('(53) egyéb szolgáltatások'!$P:$P,$B16,'(52) igénybe vett szolg'!$N:$N)","v":0},{"$f":"SUMIF('(11) immat jav beszerz'!$S:$S,$B16,'(11) immat jav beszerz'!$Q:$Q)","v":0},{"$f":"SUMIF('(13) műszaki berendezések'!$S:$S,$B16,'(13) műszaki berendezések'!$Q:$Q)","v":0},{"$f":"SUMIF('(14) egyéb berendezések'!$S:$S,$B16,'(14) egyéb berendezések'!$Q:$Q)","v":0},{"$f":"SUMIF('(16) beruházás,felújítás'!$S:$S,$B16,'(16) beruházás,felújítás'!$Q:$Q)","v":0},0,null,9,"D.M./Rezsi",0,0,0,0,0,0,0,0,0,0,0]
[10,"D.M./Immat.",0,{"$f":"SUMIF('(54-56) személyi+járulék'!$T:$T,B17,'(54-56) személyi+járulék'!$N:$N)","v":0},{"$f":"SUMIF('(54-56) személyi+járulék'!$T:$T,B17,'(54-56) személyi+járulék'!$Q:$Q)","v":0},{"$f":"SUMIF('(51) anyagköltség '!$P:$P,B17,'(51) anyagköltség '!$L:$L)","v":0},{"$f":"SUMIF('(52) igénybe vett szolg'!$P:$P,B17,'(52) igénybe vett szolg'!$L:$L)","v":0},{"$f":"SUMIF('(53) egyéb szolgáltatások'!$P:$P,$B17,'(52) igénybe vett szolg'!$L:$L)","v":0},{"$f":"SUMIF('(11) immat jav beszerz'!$S:$S,$B17,'(11) immat jav beszerz'!$O:$O)","v":500},{"$f":"SUMIF('(13) műszaki berendezések'!$S:$S,$B17,'(13) műszaki berendezések'!$O:$O)","v":0},{"$f":"SUMIF('(14) egyéb berendezések'!$S:$S,$B17,'(14) egyéb berendezések'!$O:$O)","v":0},{"$f":"SUMIF('(16) beruházás,felújítás'!$S:$S,$B17,'(16) beruházás,felújítás'!$O:$O)","v":0},{"$f":"SUM(C17:L17)","v":500},null,null,10,"D.M./Immat.",0,{"$f":"SUMIF('(54-56) személyi+járulék'!$T:$T,Q17,'(54-56) személyi+járulék'!$O:$O)","v":0},{"$f":"SUMIF('(54-56) személyi+járulék'!$T:$T,Q17,'(54-56) személyi+járulék'!$R:$R)","v":0},{"$f":"SUMIF('(51) anyagköltség '!$P:$P,Q17,'(51) anyagköltség '!$M:$M)","v":0},{"$f":"SUMIF('(52) igénybe vett szolg'!$P:$P,Q17,'(52) igénybe vett szolg'!$M:$M)","v":0},{"$f":"SUMIF('(53) egyéb szolgáltatások'!$P:$P,$B17,'(52) igénybe vett szolg'!$M:$M)","v":0},{"$f":"SUMIF('(11) immat jav beszerz'!$S:$S,$B17,'(11) immat jav beszerz'!$P:$P)","v":500},{"$f":"SUMIF('(13) műszaki berendezések'!$S:$S,$B17,'(13) műszaki berendezések'!$P:$P)","v":0},{"$f":"SUMIF('(14) egyéb berendezések'!$S:$S,$B17,'(14) egyéb berendezések'!$P:$P)","v":0},{"$f":"SUMIF('(16) beruházás,felújítás'!$S:$S,$B17,'(16) beruházás,felújítás'!$P:$P)","v":0},{"$f":"SUM(R17:AA17)","v":500},null,null,10,"D.M./Immat.",0,{"$f":"SUMIF('(54-56) személyi+járulék'!AX:AX,AF17,'(54-56) személyi+járulék'!$P:$P)","v":0},{"$f":"SUMIF('(54-56) személyi+járulék'!$T:$T,AF17,'(54-56) személyi+járulék'!$S:$S)","v":0},{"$f":"SUMIF('(51) anyagköltség '!$P:$P,AF17,'(51) anyagköltség '!$N:$N)","v":0},{"$f":"SUMIF('(52) igénybe vett szolg'!$P:$P,AF17,'(52) igénybe vett szolg'!$N:$N)","v":0},{"$f":"SUMIF('(53) egyéb szolgáltatások'!$P:$P,$B17,'(52) igénybe vett szolg'!$N:$N)","v":0},{"$f":"SUMIF('(11) immat jav beszerz'!$S:$S,$B17,'(11) immat jav beszerz'!$Q:$Q)","v":0},{"$f":"SUMIF('(13) műszaki berendezések'!$S:$S,$B17,'(13) műszaki berendezések'!$Q:$Q)","v":0},{"$f":"SUMIF('(14) egyéb berendezések'!$S:$S,$B17,'(14) egyéb berendezések'!$Q:$Q)","v":0},{"$f":"SUMIF('(16) beruházás,felújítás'!$S:$S,$B17,'(16) beruházás,felújítás'!$Q:$Q)","v":0},{"$f":"SUM(AG17:AP17)","v":0},null,10,"D.M./Immat.",0,{"$f":"+D17+S17+AH17","v":0},{"$f":"+E17+T17+AI17","v":0},{"$f":"+F17+U17+AJ17","v":0},{"$f":"+G17+V17+AK17","v":0},{"$f":"+H17+W17+AL17","v":0},{"$f":"+I17+X17+AM17","v":1000},{"$f":"+J17+Y17+AN17","v":0},{"$f":"+K17+Z17+AO17","v":0},{"$f":"+L17+AA17+AP17","v":0},{"$f":"SUM(AU17:BD17)","v":1000}]
[11,"D.M./Eszköz. műszaki",0,{"$f":"SUMIF('(54-56) személyi+járulék'!$T:$T,B18,'(54-56) személyi+járulék'!$N:$N)","v":0},{"$f":"SUMIF('(54-56) személyi+járulék'!$T:$T,B18,'(54-56) személyi+járulék'!$Q:$Q)","v":0},{"$f":"SUMIF('(51) anyagköltség '!$P:$P,B18,'(51) anyagköltség '!$L:$L)","v":0},{"$f":"SUMIF('(52) igénybe vett szolg'!$P:$P,B18,'(52) igénybe vett szolg'!$L:$L)","v":0},{"$f":"SUMIF('(53) egyéb szolgáltatások'!$P:$P,$B18,'(52) igénybe vett szolg'!$L:$L)","v":0},{"$f":"SUMIF('(11) immat jav beszerz'!$S:$S,$B18,'(11) immat jav beszerz'!$O:$O)","v":0},{"$f":"SUMIF('(13) műszaki berendezések'!$S:$S,$B18,'(13) műszaki berendezések'!$O:$O)","v":0},{"$f":"SUMIF('(14) egyéb berendezések'!$S:$S,$B18,'(14) egyéb berendezések'!$O:$O)","v":0},{"$f":"SUMIF('(16) beruházás,felújítás'!$S:$S,$B18,'(16) beruházás,felújítás'!$O:$O)","v":0},0,null,null,11,"D.M./Eszköz. műszaki",0,{"$f":"SUMIF('(54-56) személyi+járulék'!$T:$T,Q18,'(54-56) személyi+járulék'!$O:$O)","v":0},{"$f":"SUMIF('(54-56) személyi+járulék'!$T:$T,Q18,'(54-56) személyi+járulék'!$R:$R)","v":0},{"$f":"SUMIF('(51) anyagköltség '!$P:$P,Q18,'(51) anyagköltség '!$M:$M)","v":0},{"$f":"SUMIF('(52) igénybe vett szolg'!$P:$P,Q18,'(52) igénybe vett szolg'!$M:$M)","v":0},{"$f":"SUMIF('(53) egyéb szolgáltatások'!$P:$P,$B18,'(52) igénybe vett szolg'!$M:$M)","v":0},{"$f":"SUMIF('(11) immat jav beszerz'!$S:$S,$B18,'(11) immat jav beszerz'!$P:$P)","v":0},{"$f":"SUMIF('(13) műszaki berendezések'!$S:$S,$B18,'(13) műszaki berendezések'!$P:$P)","v":0},{"$f":"SUMIF('(14) egyéb berendezések'!$S:$S,$B18,'(14) egyéb berendezések'!$P:$P)","v":0},{"$f":"SUMIF('(16) beruházás,felújítás'!$S:$S,$B18,'(16) beruházás,felújítás'!$P:$P)","v":0},0,null,null,11,"D.M./Eszköz. műszaki",0,{"$f":"SUMIF('(54-56) személyi+járulék'!AX:AX,AF18,'(54-56) személyi+járulék'!$P:$P)","v":0},{"$f":"SUMIF('(54-56) személyi+járulék'!$T:$T,AF18,'(54-56) személyi+járulék'!$S:$S)","v":0},{"$f":"SUMIF('(51) anyagköltség '!$P:$P,AF18,'(51) anyagköltség '!$N:$N)","v":0},{"$f":"SUMIF('(52) igénybe vett szolg'!$P:$P,AF18,'(52) igénybe vett szolg'!$N:$N)","v":0},{"$f":"SUMIF('(53) egyéb szolgáltatások'!$P:$P,$B18,'(52) igénybe vett szolg'!$N:$N)","v":0},{"$f":"SUMIF('(11) immat jav beszerz'!$S:$S,$B18,'(11) immat jav beszerz'!$Q:$Q)","v":0},{"$f":"SUMIF('(13) műszaki berendezések'!$S:$S,$B18,'(13) műszaki berendezések'!$Q:$Q)","v":0},{"$f":"SUMIF('(14) egyéb berendezések'!$S:$S,$B18,'(14) egyéb berendezések'!$Q:$Q)","v":0},{"$f":"SUMIF('(16) beruházás,felújítás'!$S:$S,$B18,'(16) beruházás,felújítás'!$Q:$Q)","v":0},0,null,11,"D.M./Eszköz. műszaki",0,{"$f":"+D18+S18+AH18","v":0},0,0,0,0,0,0,0,0,0]
[12,"D.M./Eszköz. egyéb",0,{"$f":"SUMIF('(54-56) személyi+járulék'!$T:$T,B19,'(54-56) személyi+járulék'!$N:$N)","v":0},{"$f":"SUMIF('(54-56) személyi+járulék'!$T:$T,B19,'(54-56) személyi+járulék'!$Q:$Q)","v":0},{"$f":"SUMIF('(51) anyagköltség '!$P:$P,B19,'(51) anyagköltség '!$L:$L)","v":0},{"$f":"SUMIF('(52) igénybe vett szolg'!$P:$P,B19,'(52) igénybe vett szolg'!$L:$L)","v":0},{"$f":"SUMIF('(53) egyéb szolgáltatások'!$P:$P,$B19,'(52) igénybe vett szolg'!$L:$L)","v":0},{"$f":"SUMIF('(11) immat jav beszerz'!$S:$S,$B19,'(11) immat jav beszerz'!$O:$O)","v":0},{"$f":"SUMIF('(13) műszaki berendezések'!$S:$S,$B19,'(13) műszaki berendezések'!$O:$O)","v":0},{"$f":"SUMIF('(14) egyéb berendezések'!$S:$S,$B19,'(14) egyéb berendezések'!$O:$O)","v":0},{"$f":"SUMIF('(16) beruházás,felújítás'!$S:$S,$B19,'(16) beruházás,felújítás'!$O:$O)","v":0},{"$f":"SUM(C19:L19)","v":0},null,null,12,"D.M./Eszköz. egyéb",0,{"$f":"SUMIF('(54-56) személyi+járulék'!$T:$T,Q19,'(54-56) személyi+járulék'!$O:$O)","v":0},{"$f":"SUMIF('(54-56) személyi+járulék'!$T:$T,Q19,'(54-56) személyi+járulék'!$R:$R)","v":0},{"$f":"SUMIF('(51) anyagköltség '!$P:$P,Q19,'(51) anyagköltség '!$M:$M)","v":0},{"$f":"SUMIF('(52) igénybe vett szolg'!$P:$P,Q19,'(52) igénybe vett szolg'!$M:$M)","v":0},{"$f":"SUMIF('(53) egyéb szolgáltatások'!$P:$P,$B19,'(52) igénybe vett szolg'!$M:$M)","v":0},{"$f":"SUMIF('(11) immat jav beszerz'!$S:$S,$B19,'(11) immat jav beszerz'!$P:$P)","v":0},{"$f":"SUMIF('(13) műszaki berendezések'!$S:$S,$B19,'(13) műszaki berendezések'!$P:$P)","v":0},{"$f":"SUMIF('(14) egyéb berendezések'!$S:$S,$B19,'(14) egyéb berendezések'!$P:$P)","v":0},{"$f":"SUMIF('(16) beruházás,felújítás'!$S:$S,$B19,'(16) beruházás,felújítás'!$P:$P)","v":0},{"$f":"SUM(R19:AA19)","v":0},null,null,12,"D.M./Eszköz. egyéb",0,{"$f":"SUMIF('(54-56) személyi+járulék'!AX:AX,AF19,'(54-56) személyi+járulék'!$P:$P)","v":0},{"$f":"SUMIF('(54-56) személyi+járulék'!$T:$T,AF19,'(54-56) személyi+járulék'!$S:$S)","v":0},{"$f":"SUMIF('(51) anyagköltség '!$P:$P,AF19,'(51) anyagköltség '!$N:$N)","v":0},{"$f":"SUMIF('(52) igénybe vett szolg'!$P:$P,AF19,'(52) igénybe vett szolg'!$N:$N)","v":0},{"$f":"SUMIF('(53) egyéb szolgáltatások'!$P:$P,$B19,'(52) igénybe vett szolg'!$N:$N)","v":0},{"$f":"SUMIF('(11) immat jav beszerz'!$S:$S,$B19,'(11) immat jav beszerz'!$Q:$Q)","v":0},{"$f":"SUMIF('(13) műszaki berendezések'!$S:$S,$B19,'(13) műszaki berendezések'!$Q:$Q)","v":0},{"$f":"SUMIF('(14) egyéb berendezések'!$S:$S,$B19,'(14) egyéb berendezések'!$Q:$Q)","v":0},{"$f":"SUMIF('(16) beruházás,felújítás'!$S:$S,$B19,'(16) beruházás,felújítás'!$Q:$Q)","v":0},{"$f":"SUM(AG19:AP19)","v":0},null,12,"D.M./Eszköz. egyéb",0]
[13,"Kut.infra.- b.r.",0,{"$f":"SUMIF('(54-56) személyi+járulék'!$T:$T,B20,'(54-56) személyi+járulék'!$N:$N)","v":0},{"$f":"SUMIF('(54-56) személyi+járulék'!$T:$T,B20,'(54-56) személyi+járulék'!$Q:$Q)","v":0},{"$f":"SUMIF('(51) anyagköltség '!$P:$P,B20,'(51) anyagköltség '!$L:$L)","v":0},{"$f":"SUMIF('(52) igénybe vett szolg'!$P:$P,B20,'(52) igénybe vett szolg'!$L:$L)","v":0},{"$f":"SUMIF('(53) egyéb szolgáltatások'!$P:$P,$B20,'(52) igénybe vett szolg'!$L:$L)","v":0},{"$f":"SUMIF('(11) immat jav beszerz'!$S:$S,$B20,'(11) immat jav beszerz'!$O:$O)","v":0},{"$f":"SUMIF('(13) műszaki berendezések'!$S:$S,$B20,'(13) műszaki berendezések'!$O:$O)","v":0},{"$f":"SUMIF('(14) egyéb berendezések'!$S:$S,$B20,'(14) egyéb berendezések'!$O:$O)","v":0},{"$f":"SUMIF('(16) beruházás,felújítás'!$S:$S,$B20,'(16) beruházás,felújítás'!$O:$O)","v":500},500,null,null,13,"Kut.infra.- b.r.",0,{"$f":"SUMIF('(54-56) személyi+járulék'!$T:$T,Q20,'(54-56) személyi+járulék'!$O:$O)","v":0},{"$f":"SUMIF('(54-56) személyi+járulék'!$T:$T,Q20,'(54-56) személyi+járulék'!$R:$R)","v":0},{"$f":"SUMIF('(51) anyagköltség '!$P:$P,Q20,'(51) anyagköltség '!$M:$M)","v":0},{"$f":"SUMIF('(52) igénybe vett szolg'!$P:$P,Q20,'(52) igénybe vett szolg'!$M:$M)","v":0},{"$f":"SUMIF('(53) egyéb szolgáltatások'!$P:$P,$B20,'(52) igénybe vett szolg'!$M:$M)","v":0},{"$f":"SUMIF('(11) immat jav beszerz'!$S:$S,$B20,'(11) immat jav beszerz'!$P:$P)","v":0},{"$f":"SUMIF('(13) műszaki berendezések'!$S:$S,$B20,'(13) műszaki berendezések'!$P:$P)","v":0},{"$f":"SUMIF('(14) egyéb berendezések'!$S:$S,$B20,'(14) egyéb berendezések'!$P:$P)","v":0},{"$f":"SUMIF('(16) beruházás,felújítás'!$S:$S,$B20,'(16) beruházás,felújítás'!$P:$P)","v":500},500,null,null,13,"Kut.infra.- b.r.",0,{"$f":"SUMIF('(54-56) személyi+járulék'!AX:AX,AF20,'(54-56) személyi+járulék'!$P:$P)","v":0},{"$f":"SUMIF('(54-56) személyi+járulék'!$T:$T,AF20,'(54-56) személyi+járulék'!$S:$S)","v":0},{"$f":"SUMIF('(51) anyagköltség '!$P:$P,AF20,'(51) anyagköltség '!$N:$N)","v":0},{"$f":"SUMIF('(52) igénybe vett szolg'!$P:$P,AF20,'(52) igénybe vett szolg'!$N:$N)","v":0},{"$f":"SUMIF('(53) egyéb szolgáltatások'!$P:$P,$B20,'(52) igénybe vett szolg'!$N:$N)","v":0},{"$f":"SUMIF('(11) immat jav beszerz'!$S:$S,$B20,'(11) immat jav beszerz'!$Q:$Q)","v":0},{"$f":"SUMIF('(13) műszaki berendezések'!$S:$S,$B20,'(13) műszaki berendezések'!$Q:$Q)","v":0},{"$f":"SUMIF('(14) egyéb berendezések'!$S:$S,$B20,'(14) egyéb berendezések'!$Q:$Q)","v":0},{"$f":"SUMIF('(16) beruházás,felújítás'!$S:$S,$B20,'(16) beruházás,felújítás'!$Q:$Q)","v":0},0,null,13,"D.M./Eszköz. egyéb",0,0,0,0,0,0,0,0,0,1000,1000]
[14,"Nem állami támogatás",0,{"$f":"SUMIF('(54-56) személyi+járulék'!$T:$T,B21,'(54-56) személyi+járulék'!$N:$N)","v":0},{"$f":"SUMIF('(54-56) személyi+járulék'!$T:$T,B21,'(54-56) személyi+járulék'!$Q:$Q)","v":0},{"$f":"SUMIF('(51) anyagköltség '!$P:$P,B21,'(51) anyagköltség '!$L:$L)","v":0},{"$f":"SUMIF('(52) igénybe vett szolg'!$P:$P,B21,'(52) igénybe vett szolg'!$L:$L)","v":0},{"$f":"SUMIF('(53) egyéb szolgáltatások'!$P:$P,$B21,'(52) igénybe vett szolg'!$L:$L)","v":0},{"$f":"SUMIF('(11) immat jav beszerz'!$S:$S,$B21,'(11) immat jav beszerz'!$O:$O)","v":0},{"$f":"SUMIF('(13) műszaki berendezések'!$S:$S,$B21,'(13) műszaki berendezések'!$O:$O)","v":0},{"$f":"SUMIF('(14) egyéb berendezések'!$S:$S,$B21,'(14) egyéb berendezések'!$O:$O)","v":0},{"$f":"SUMIF('(16) beruházás,felújítás'!$S:$S,$B21,'(16) beruházás,felújítás'!$O:$O)","v":0},0,null,null,14,"Nem állami támogatás",0,{"$f":"SUMIF('(54-56) személyi+járulék'!$T:$T,Q21,'(54-56) személyi+járulék'!$O:$O)","v":0},{"$f":"SUMIF('(54-56) személyi+járulék'!$T:$T,Q21,'(54-56) személyi+járulék'!$R:$R)","v":0},{"$f":"SUMIF('(51) anyagköltség '!$P:$P,Q21,'(51) anyagköltség '!$M:$M)","v":0},{"$f":"SUMIF('(52) igénybe vett szolg'!$P:$P,Q21,'(52) igénybe vett szolg'!$M:$M)","v":0},{"$f":"SUMIF('(53) egyéb szolgáltatások'!$P:$P,$B21,'(52) igénybe vett szolg'!$M:$M)","v":0},{"$f":"SUMIF('(11) immat jav beszerz'!$S:$S,$B21,'(11) immat jav beszerz'!$P:$P)","v":0},{"$f":"SUMIF('(13) műszaki berendezések'!$S:$S,$B21,'(13) műszaki berendezések'!$P:$P)","v":0},{"$f":"SUMIF('(14) egyéb berendezések'!$S:$S,$B21,'(14) egyéb berendezések'!$P:$P)","v":0},{"$f":"SUMIF('(16) beruházás,felújítás'!$S:$S,$B21,'(16) beruházás,felújítás'!$P:$P)","v":0},0,null,null,14,"Nem állami támogatás",0,{"$f":"SUMIF('(54-56) személyi+járulék'!AX:AX,AF21,'(54-56) személyi+járulék'!$P:$P)","v":0},{"$f":"SUMIF('(54-56) személyi+járulék'!$T:$T,AF21,'(54-56) személyi+járulék'!$S:$S)","v":0},{"$f":"SUMIF('(51) anyagköltség '!$P:$P,AF21,'(51) anyagköltség '!$N:$N)","v":0},{"$f":"SUMIF('(52) igénybe vett szolg'!$P:$P,AF21,'(52) igénybe vett szolg'!$N:$N)","v":0},{"$f":"SUMIF('(53) egyéb szolgáltatások'!$P:$P,$B21,'(52) igénybe vett szolg'!$N:$N)","v":0},{"$f":"SUMIF('(11) immat jav beszerz'!$S:$S,$B21,'(11) immat jav beszerz'!$Q:$Q)","v":0},{"$f":"SUMIF('(13) műszaki berendezések'!$S:$S,$B21,'(13) műszaki berendezések'!$Q:$Q)","v":0},{"$f":"SUMIF('(14) egyéb berendezések'!$S:$S,$B21,'(14) egyéb berendezések'!$Q:$Q)","v":0},{"$f":"SUMIF('(16) beruházás,felújítás'!$S:$S,$B21,'(16) beruházás,felújítás'!$Q:$Q)","v":0},0,null,14,"Nem állami támogatás",0,0,0,0,0,0,0,0,0,0,0]
[]
["elszámolt költségek összegzése:",null,null,{"$f":"SUM(D8:D21)","v":6000},{"$f":"SUM(E8:E21)","v":2000},0,500,500,500,500,500,{"$f":"SUM(L8:L21)","v":500},{"$f":"SUM(M8:M21)","v":11000},null,null,"elszámolt költségek összegzése:",null,null,{"$f":"SUM(S8:S21)","v":0},{"$f":"SUM(T8:T21)","v":0},0,500,500,500,500,500,{"$f":"SUM(AA8:AA21)","v":500},{"$f":"SUM(AB8:AB21)","v":3000},null,null,"elszámolt költségek összegzése:",null,null,{"$f":"SUM(AH8:AH21)","v":0},{"$f":"SUM(AI8:AI21)","v":0},0,0,0,0,0,0,{"$f":"SUM(AP8:AP21)","v":0},{"$f":"SUM(AQ8:AQ21)","v":0},null,"elszámolt költségek összegzése:",null,null,{"$f":"SUM(AV8:AV21)","v":6000},{"$f":"SUM(AW8:AW21)","v":2000},0,1000,1000,1000,1000,1000,1000,{"$f":"SUM(BE8:BE22)","v":14000}]
["költségösszegzés a számlaösszesítők alapján:",null,null,{"$f":"'(54-56) személyi+járulék'!N26","v":7100},{"$f":"'(54-56) személyi+járulék'!Q26","v":2200},{"$f":"'(51) anyagköltség '!L28","v":500},{"$f":"'(52) igénybe vett szolg'!L28","v":500},{"$f":"+'(53) egyéb szolgáltatások'!L25","v":500},{"$f":"'(11) immat jav beszerz'!O27","v":500},{"$f":"'(13) műszaki berendezések'!O27","v":500},{"$f":"+'(14) egyéb berendezések'!O27","v":500},{"$f":"'(16) beruházás,felújítás'!O27","v":500},{"$f":"SUM(D24:L24)","v":12800},null,null,"költségösszegzés a számlaösszesítők alapján:",null,null,{"$f":"+'(54-56) személyi+járulék'!O26","v":0},{"$f":"+'(54-56) személyi+járulék'!R26","v":0},{"$f":"+'(51) anyagköltség '!M28","v":500},{"$f":"+'(52) igénybe vett szolg'!M28","v":500},{"$f":"+'(53) egyéb szolgáltatások'!M25","v":500},{"$f":"+'(11) immat jav beszerz'!P27","v":500},{"$f":"+'(13) műszaki berendezések'!P27","v":500},{"$f":"+'(14) egyéb berendezések'!P27","v":500},{"$f":"+'(16) beruházás,felújítás'!P27","v":500},{"$f":"SUM(S24:AA24)","v":3500},null,null,"költségösszegzés a számlaösszesítők alapján:",null,null,{"$f":"+'(54-56) személyi+járulék'!P26","v":0},{"$f":"+'(54-56) személyi+járulék'!S26","v":0},{"$f":"+'(51) anyagköltség '!N28","v":0},{"$f":"+'(52) igénybe vett szolg'!N28","v":0},{"$f":"+'(53) egyéb szolgáltatások'!N25","v":0},{"$f":"+'(11) immat jav beszerz'!Q27","v":0},{"$f":"+'(13) műszaki berendezések'!Q27","v":0},{"$f":"+'(14) egyéb berendezések'!Q27","v":0},{"$f":"+'(16) beruházás,felújítás'!Q27","v":0},{"$f":"SUM(AH24:AP24)","v":0},null,"költségösszegzés a számlaösszesítők alapján:",null,null,{"$f":"+'(54-56) személyi+járulék'!N26+'(54-56) személyi+járulék'!O26+'(54-56) személyi+járulék'!P26","v":7100},{"$f":"+'(54-56) személyi+járulék'!Q26+'(54-56) személyi+járulék'!R26+'(54-56) személyi+járulék'!S26","v":2200},{"$f":"+'(51) anyagköltség '!O28","v":1000},{"$f":"+'(52) igénybe vett szolg'!O28","v":1000},{"$f":"+'(53) egyéb szolgáltatások'!O25","v":1000},{"$f":"+'(11) immat jav beszerz'!R27","v":1000},{"$f":"+'(13) műszaki berendezések'!R27","v":1000},{"$f":"+'(14) egyéb berendezések'!R27","v":1000},{"$f":"+'(16) beruházás,felújítás'!R27","v":1000},{"$f":"SUM(AV24:BD24)","v":16300}]

{"sheet":"(LNY) lemondó nyilatkozat","index":10,"n_rows":31,"n_cols":2,"rows_kept":31,"cut":false,"hidden":false,"merged":[[6,0,6,1],[15,0,15,1],[30,0,30,1]]}
[]
["Egy példányban kitöltve, eredeti aláírással és bélyegzéssel ellátva kell benyújtani."]
[]
[]
[]
[]
["Lemondó Nyilatkozat"]
[]
[]
[]
["Kedvezményezett neve",{"$f":"+'(54-56) személyi+járulék'!G1","v":"XY Kft."}]
["Szerződésszám",{"$f":"+'(54-56) személyi+járulék'!G2","v":"2018-1.1.1-VKE-2018-00001"}]
["Mérföldkő dátuma:",{"$f":"+'(54-56) személyi+járulék'!G3","v":"2018-12-31"}]
[]
[]
["Alulírott <név>, mint a <kedvezményezett megnevezése> társaság/szervezet cégjegyzésre jogosult vezetője nyilatkozom, hogy a fenti azonosító számú projekt megvalósításához a megítélt támogatásból összesen <a ténylegesen elszámolt támogatás összege> Ft került felhasználásra. A fennmaradó <a megítélt és a tényleges támogatás különbsége> Ft támogatást a továbbiakban nem kívánom igénybe venni, így arról lemondok. "]
[]
[]
["Hely, dátum"]
[]
[]
[]
[null,"………………………………"]
[null,"Kedvezményezett cégszerű *"]
[null,"aláírása"]
[null,"Ph."]
[]
[]
[]
[]
["* Az aláírók nevét nyomtatott betűkkel is kérjük kitölteni"]

{"sheet":"támogatás típusai","index":11,"n_rows":14,"n_cols":3,"rows_kept":14,"cut":false,"hidden":true,"merged":[[1,1,1,2],[4,2,5,2],[7,2,11,2]]}
[]
["támogatás típus rövídítése","támogatás típusa"]
[]
["K+F/Alap.","Alapkutatás","Kutatás-fejlesztési projekthez nyújtott támogatás "]
["K+F/Alkalm.","Alkalmazott (ipari) kutatás"]
["K+F/Kis.fejl.","Kísérleti fejlesztés"]
["D.M./Közbesz.","Közbeszerzés","De minimis támogatás"]
["D.M./Koord.","Koordinációs költség"]
["D.M./Tájék.","Tájékoztatási költség"]
["D.M./Piac","Piacra jutáshoz kapcsolódó költségek"]
["D.M./Iparjog","Iparjogvédelemmel kapcsolatos költségek"]
["D.M./Rezsi","Általános (rezsi) költségek"]
["Kut.infra.- b.r.","Kutatási infrastruktúrához nyújtott beruházási támogatás","Kutatási infrastruktúrához nyújtott beruházási támogatás"]
["Nem állami támogatás","Nem állami támogatás"]

{"sheet":"Támogatás típusa","index":12,"n_rows":17,"n_cols":3,"rows_kept":17,"cut":false,"hidden":false,"merged":[[1,1,1,2],[3,2,5,2],[6,2,14,2]]}
[]
["támogatás típus rövídítése","támogatás típusa"]
[]
["K+F/Alap.","Alapkutatás","Kutatás-fejlesztési projekthez nyújtott támogatás "]
["K+F/Alkalm.","Alkalmazott (ipari) kutatás"]
["K+F/Kis.fejl.","Kísérleti fejlesztés"]
["D.M./Közbesz.","Közbeszerzés","De minimis támogatás"]
["D.M./Koord.","Koordinációs költség"]
["D.M./Tájék.","Tájékoztatási költség"]
["D.M./Piac","Piacra jutáshoz kapcsolódó költségek"]
["D.M./Iparjog","Iparjogvédelemmel kapcsolatos költségek"]
["D.M./Rezsi","Általános (rezsi) költségek"]
["D.M./Immat.","Immateriális javak beszerzése"]
["D.M./Eszköz. műszaki","Eszközbeszerzés (műszaki berendezések)"]
["D.M./Eszköz. egyéb","Eszközbeszerzés (egyéb berendezések)"]
["Kut.infra.- b.r.","Kutatási infrastruktúrához nyújtott beruházási támogatás","Kutatási infrastruktúrához nyújtott beruházási támogatás"]
["Nem állami támogatás","Nem állami támogatás","Nem állami támogatás"]